Workbook

Sheet Herstellerbericht IST
A1: Rundungen | B1: Schlüssel | C1: Mandant | D1: Filiale | E1: Filiale_Sort | F1: Kostenstelle | G1: Kostenstelle_Sort | H1: Marke | I1: Marke_Sort | J1: Dimension01 | K1: Dimension01_Sort | L1: Dimension02 | M1: Dimension02_Sort | N1: Datenart | O1: Kontenart | P1: Jahr | Q1: Monat | R1: Wert | S1: Finanzbericht
A2: Cent | C2: 1 | D2: 0 - ohne | E2: 0 | F2: 0 - ohne | G2: 0 | H2: 0 - ohne | I2: 0 | J2: 0 - ohne | K2: 0 | L2: 0 - ohne | M2: 0 | N2: IST | O2: EXT | P2: 2018 | Q2: 1 | R2: 0
A3: Euro | C3: 1 | D3: 0 - ohne | E3: 0 | F3: 0 - ohne | G3: 0 | H3: 0 - ohne | I3: 0 | J3: 0 - ohne | K3: 0 | L3: 0 - ohne | M3: 0 | N3: IST | O3: EXT | P3: 2018 | Q3: 1 | R3: 0 | U3: IST 2018 Gesamtbetrieb | X3: IST 2018 Verkauf NW | AA3: IST 2018 Verkauf VFW | AD3: IST 2018 Verkauf GW | AG3: IST 2018 Teile | AJ3: IST 2018 Werkstatt | AM3: IST 2018 Mietfahrzeuge | AP3: IST 2018 Verwaltung
A4: Tausend Euro | C4: 1 | D4: 0 - ohne | E4: 0 | F4: 0 - ohne | G4: 0 | H4: 0 - ohne | I4: 0 | J4: 0 - ohne | K4: 0 | L4: 0 - ohne | M4: 0 | N4: IST | O4: EXT | P4: 2018 | Q4: 1 | R4: 0
C5: 1 | D5: 0 - ohne | E5: 0 | F5: 0 - ohne | G5: 0 | H5: 0 - ohne | I5: 0 | J5: 0 - ohne | K5: 0 | L5: 0 - ohne | M5: 0 | N5: IST | O5: EXT | P5: 2018 | Q5: 2 | R5: 0 | U5: Spalte 1 | X5: Spalte 2 | AA5: Spalte 3 | AD5: Spalte 4 | AG5: Spalte 5 | AJ5: Spalte 6 | AM5: Spalte 7 | AP5: Spalte 8
A6: Anzahl Leerzeilen | C6: 1 | D6: 0 - ohne | E6: 0 | F6: 0 - ohne | G6: 0 | H6: 0 - ohne | I6: 0 | J6: 0 - ohne | K6: 0 | L6: 0 - ohne | M6: 0 | N6: IST | O6: EXT | P6: 2018 | Q6: 3 | R6: 0 | U6: Wert | X6: Wert | AA6: Wert | AD6: Wert | AG6: Wert | AJ6: Wert | AM6: Wert | AP6: Wert
A7: 300 | C7: 1 | D7: 0 - ohne | E7: 0 | F7: 0 - ohne | G7: 0 | H7: 0 - ohne | I7: 0 | J7: 0 - ohne | K7: 0 | L7: 0 - ohne | M7: 0 | N7: IST | O7: EXT | P7: 2018 | Q7: 4 | R7: 0
C8: 1 | D8: 0 - ohne | E8: 0 | F8: 0 - ohne | G8: 0 | H8: 0 - ohne | I8: 0 | J8: 0 - ohne | K8: 0 | L8: 0 - ohne | M8: 0 | N8: IST | O8: EXT | P8: 2018 | Q8: 5 | R8: 0 | S8: Mandant: | U8: 1 - Audi Zentrum GmbH | V8: ="T20:V" & 19 + COUNTA(T20:T299) -> T20:V120 | X8: 1 - Audi Zentrum GmbH | Y8: ="W20:Y" & 19 + COUNTA(W20:W299) -> W20:Y82 | AA8: 1 - Audi Zentrum GmbH | AB8: ="Z20:AB" & 19 + COUNTA(Z20:Z299) -> Z20:AB71 | AD8: 1 - Audi Zentrum GmbH | AE8: ="AC20:AE" & 19 + COUNTA(AC20:AC299) -> AC20:AE79 | AG8: 1 - Audi Zentrum GmbH | AH8: ="AF20:AH" & 19 + COUNTA(AF20:AF299) -> AF20:AH76 | AJ8: 1 - Audi Zentrum GmbH | AK8: ="AI20:AK" & 19 + COUNTA(AI20:AI299) -> AI20:AK79 | AM8: 1 - Audi Zentrum GmbH | AN8: ="AL20:AN" & 19 + COUNTA(AL20:AL299) -> AL20:AN27 | AP8: 1 - Audi Zentrum GmbH | AQ8: ="AO20:AQ" & 19 + COUNTA(AO20:AO299) -> AO20:AQ28
A9: Wertspalten | C9: 1 | D9: 0 - ohne | E9: 0 | F9: 0 - ohne | G9: 0 | H9: 0 - ohne | I9: 0 | J9: 0 - ohne | K9: 0 | L9: 0 - ohne | M9: 0 | N9: IST | O9: EXT | P9: 2018 | Q9: 6 | R9: 0 | S9: Jahr: | T9: Jahr | U9: 2018 | W9: Jahr | X9: 2018 | Z9: Jahr | AA9: 2018 | AC9: Jahr | AD9: 2018 | AF9: Jahr | AG9: 2018 | AI9: Jahr | AJ9: 2018 | AL9: Jahr | AM9: 2018 | AO9: Jahr | AP9: 2018
A10: 1,2,3,4,5,6,7,8 | C10: 1 | D10: 0 - ohne | E10: 0 | F10: 0 - ohne | G10: 0 | H10: 0 - ohne | I10: 0 | J10: 0 - ohne | K10: 0 | L10: 0 - ohne | M10: 0 | N10: IST | O10: EXT | P10: 2018 | Q10: 7 | R10: 0 | S10: Monat: | T10: Monat | U10: (Alle) | W10: Monat | X10: (Alle) | Z10: Monat | AA10: (Alle) | AC10: Monat | AD10: (Alle) | AF10: Monat | AG10: (Alle) | AI10: Monat | AJ10: (Alle) | AL10: Monat | AM10: (Alle) | AO10: Monat | AP10: (Alle)
C11: 1 | D11: 0 - ohne | E11: 0 | F11: 0 - ohne | G11: 0 | H11: 0 - ohne | I11: 0 | J11: 0 - ohne | K11: 0 | L11: 0 - ohne | M11: 0 | N11: IST | O11: EXT | P11: 2018 | Q11: 8 | R11: 0 | S11: Filiale: | T11: Filiale | U11: (Alle) | W11: Filiale | X11: (Alle) | Z11: Filiale | AA11: (Alle) | AC11: Filiale | AD11: (Alle) | AF11: Filiale | AG11: (Alle) | AI11: Filiale | AJ11: (Alle) | AL11: Filiale | AM11: (Alle) | AO11: Filiale | AP11: (Alle)
C12: 1 | D12: 0 - ohne | E12: 0 | F12: 0 - ohne | G12: 0 | H12: 0 - ohne | I12: 0 | J12: 0 - ohne | K12: 0 | L12: 0 - ohne | M12: 0 | N12: IST | O12: EXT | P12: 2018 | Q12: 9 | R12: 0 | S12: Kostenstelle: | T12: Kostenstelle | U12: (Alle) | W12: Kostenstelle | X12: (Mehrere Elemente) | Z12: Kostenstelle | AA12: 814 - Vorführwagen | AC12: Kostenstelle | AD12: (Mehrere Elemente) | AF12: Kostenstelle | AG12: (Mehrere Elemente) | AI12: Kostenstelle | AJ12: (Mehrere Elemente) | AL12: Kostenstelle | AM12: 851 - Mietwagen | AO12: Kostenstelle | AP12: 00 - ohne
C13: 1 | D13: 0 - ohne | E13: 0 | F13: 0 - ohne | G13: 0 | H13: 0 - ohne | I13: 0 | J13: 0 - ohne | K13: 0 | L13: 0 - ohne | M13: 0 | N13: IST | O13: EXT | P13: 2018 | Q13: 10 | R13: 0 | S13: Marke: | T13: Marke | U13: (Alle) | W13: Marke | X13: (Alle) | Z13: Marke | AA13: (Alle) | AC13: Marke | AD13: (Alle) | AF13: Marke | AG13: (Alle) | AI13: Marke | AJ13: (Alle) | AL13: Marke | AM13: (Alle) | AO13: Marke | AP13: (Alle)
C14: 1 | D14: 0 - ohne | E14: 0 | F14: 0 - ohne | G14: 0 | H14: 0 - ohne | I14: 0 | J14: 0 - ohne | K14: 0 | L14: 0 - ohne | M14: 0 | N14: IST | O14: EXT | P14: 2018 | Q14: 11 | R14: 0 | S14: Absatzkanal: | T14: Dimension01 | U14: (Alle) | W14: Dimension01 | X14: (Alle) | Z14: Dimension01 | AA14: (Alle) | AC14: Dimension01 | AD14: (Alle) | AF14: Dimension01 | AG14: (Alle) | AI14: Dimension01 | AJ14: (Alle) | AL14: Dimension01 | AM14: (Alle) | AO14: Dimension01 | AP14: (Alle)
C15: 1 | D15: 0 - ohne | E15: 0 | F15: 0 - ohne | G15: 0 | H15: 0 - ohne | I15: 0 | J15: 0 - ohne | K15: 0 | L15: 0 - ohne | M15: 0 | N15: IST | O15: EXT | P15: 2018 | Q15: 12 | R15: 0 | S15: Kostenträger: | T15: Dimension02 | U15: (Alle) | W15: Dimension02 | X15: (Alle) | Z15: Dimension02 | AA15: (Alle) | AC15: Dimension02 | AD15: (Alle) | AF15: Dimension02 | AG15: (Alle) | AI15: Dimension02 | AJ15: (Alle) | AL15: Dimension02 | AM15: (Alle) | AO15: Dimension02 | AP15: (Alle)
C16: 1 | D16: 0 - ohne | E16: 0 | F16: 0 - ohne | G16: 0 | H16: 0 - ohne | I16: 0 | J16: 0 - ohne | K16: 0 | L16: 0 - ohne | M16: 0 | N16: IST | O16: INT | P16: 2018 | Q16: 1 | R16: 0 | S16: Datenart: | T16: Datenart | U16: (Alle) | W16: Datenart | X16: (Alle) | Z16: Datenart | AA16: (Alle) | AC16: Datenart | AD16: (Alle) | AF16: Datenart | AG16: (Alle) | AI16: Datenart | AJ16: (Alle) | AL16: Datenart | AM16: (Alle) | AO16: Datenart | AP16: (Alle)
C17: 1 | D17: 0 - ohne | E17: 0 | F17: 0 - ohne | G17: 0 | H17: 0 - ohne | I17: 0 | J17: 0 - ohne | K17: 0 | L17: 0 - ohne | M17: 0 | N17: IST | O17: VMU | P17: 2018 | Q17: 1 | R17: 0 | S17: Kontenart: | T17: Kontenart | U17: (Alle) | W17: Kontenart | X17: (Alle) | Z17: Kontenart | AA17: (Alle) | AC17: Kontenart | AD17: (Alle) | AF17: Kontenart | AG17: (Alle) | AI17: Kontenart | AJ17: (Alle) | AL17: Kontenart | AM17: (Alle) | AO17: Kontenart | AP17: (Alle)
C18: 1 | D18: 0 - ohne | E18: 0 | F18: 0 - ohne | G18: 0 | H18: 0 - ohne | I18: 0 | J18: 0 - ohne | K18: 0 | L18: 0 - ohne | M18: 0 | N18: P01 | O18: EXT | P18: 2018 | Q18: 1 | R18: 0 | S18: Rundung: | T18: 12 | U18: Cent | W18: 12 | X18: Cent | Z18: 12 | AA18: Cent | AC18: 12 | AD18: Cent | AF18: 12 | AG18: Cent | AI18: 12 | AJ18: Cent | AL18: 12 | AM18: Cent | AO18: 12 | AP18: Cent
C19: 1 | D19: 0 - ohne | E19: 0 | F19: 0 - ohne | G19: 0 | H19: 0 - ohne | I19: 0 | J19: 0 - ohne | K19: 0 | L19: 0 - ohne | M19: 0 | N19: P02 | O19: EXT | P19: 2018 | Q19: 1 | R19: 0 | U19: AnzahlWert | V19: SummeWert | X19: AnzahlWert | Y19: SummeWert | AA19: AnzahlWert | AB19: SummeWert | AD19: AnzahlWert | AE19: SummeWert | AG19: AnzahlWert | AH19: SummeWert | AJ19: AnzahlWert | AK19: SummeWert | AM19: AnzahlWert | AN19: SummeWert | AP19: AnzahlWert | AQ19: SummeWert
C20: 1 | D20: 0 - ohne | E20: 0 | F20: 0 - ohne | G20: 0 | H20: 0 - ohne | I20: 0 | J20: 0 - ohne | K20: 0 | L20: 00 - ohne | M20: 00 | N20: IST | O20: EXT | P20: 2018 | Q20: 1 | R20: 0 | T20: (Leer) | U20: 130 | V20: 0 | W20: (Leer) | X20: 2 | Y20: 0 | Z20: (Leer) | AA20: 1 | AB20: 0 | AC20: (Leer) | AD20: 7 | AE20: 0 | AF20: (Leer) | AG20: 4 | AH20: 0 | AI20: (Leer) | AJ20: 3 | AK20: 0 | AL20: (Leer) | AM20: 1 | AN20: 0 | AO20: (Leer) | AP20: 1 | AQ20: 0
C21: 1 | D21: 0 - ohne | E21: 0 | F21: 0 - ohne | G21: 0 | H21: 0 - ohne | I21: 0 | J21: 0 - ohne | K21: 0 | L21: 50 - GW eigene Marke | M21: 50 | N21: IST | O21: EXT | P21: 2018 | Q21: 1 | R21: 0 | T21: KA=1;IK=2110;EKZ=0 | U21: 24 | V21: 115000 | W21: KA=1;IK=4200;EKZ=0 | X21: 98 | Y21: 939616.2 | Z21: KA=1;IK=4200;EKZ=0 | AA21: 98 | AB21: 107033.77 | AC21: KA=1;IK=4200;EKZ=0 | AD21: 98 | AE21: 355839.89 | AF21: KA=1;IK=4200;EKZ=0 | AG21: 98 | AH21: 741330.84 | AI21: KA=1;IK=4100;EKZ=0 | AJ21: 24 | AK21: 574426 | AL21: KA=1;IK=4500;EKZ=0 | AM21: 24 | AN21: 30000 | AO21: KA=1;IK=2110;EKZ=0 | AP21: 24 | AQ21: 115000
C22: 1 | D22: 0 - ohne | E22: 0 | F22: 0 - ohne | G22: 0 | H22: 0 - ohne | I22: 0 | J22: 0 - ohne | K22: 0 | L22: 51 - Herstellereigene Programme | M22: 51 | N22: IST | O22: EXT | P22: 2018 | Q22: 1 | R22: 0 | T22: KA=1;IK=2120;EKZ=0 | U22: 12 | V22: 2500 | W22: KA=1;IK=4235;EKZ=0 | X22: 24 | Y22: 12730.08 | Z22: KA=1;IK=4235;EKZ=0 | AA22: 24 | AB22: 1454.88 | AC22: KA=1;IK=4235;EKZ=0 | AD22: 24 | AE22: 7638.24 | AF22: KA=1;IK=4235;EKZ=0 | AG22: 24 | AH22: 7274.4 | AI22: KA=1;IK=4110;EKZ=0 | AJ22: 74 | AK22: 116947.18 | AL22: KA=1;IK=4501;EKZ=0 | AM22: 25 | AN22: 6068 | AO22: KA=1;IK=2120;EKZ=0 | AP22: 12 | AQ22: 2500
C23: 1 | D23: 0 - ohne | E23: 0 | F23: 0 - ohne | G23: 0 | H23: 0 - ohne | I23: 0 | J23: 0 - ohne | K23: 0 | L23: 52 - GW Fremdmarke | M23: 52 | N23: IST | O23: EXT | P23: 2018 | Q23: 1 | R23: 0 | T23: KA=1;IK=2300;EKZ=0 | U23: 1 | V23: 0.27 | W23: KA=1;IK=4240;EKZ=0 | X23: 24 | Y23: 169261.68 | Z23: KA=1;IK=4240;EKZ=0 | AA23: 24 | AB23: 18643.6 | AC23: KA=1;IK=4240;EKZ=0 | AD23: 24 | AE23: 53063.76 | AF23: KA=1;IK=4240;EKZ=0 | AG23: 24 | AH23: 118866.48 | AI23: KA=1;IK=4200;EKZ=0 | AJ23: 123 | AK23: 716652.76 | AL23: KA=1;IK=4503;EKZ=0 | AM23: 24 | AN23: 9000 | AO23: KA=1;IK=2300;EKZ=0 | AP23: 1 | AQ23: 0.27
C24: 1 | D24: 0 - ohne | E24: 0 | F24: 0 - ohne | G24: 0 | H24: 0 - ohne | I24: 0 | J24: 0 - ohne | K24: 0 | L24: 57 - frei | M24: 57 | N24: IST | O24: EXT | P24: 2018 | Q24: 1 | R24: 0 | T24: KA=1;IK=2350;EKZ=0 | U24: 1 | V24: 120 | W24: KA=1;IK=4245;EKZ=0 | X24: 25 | Y24: 34101.92 | Z24: KA=1;IK=4245;EKZ=0 | AA24: 25 | AB24: 1032.08 | AC24: KA=1;IK=4245;EKZ=0 | AD24: 25 | AE24: 5418 | AF24: KA=1;IK=4245;EKZ=0 | AG24: 25 | AH24: 14007.92 | AI24: KA=1;IK=4235;EKZ=0 | AJ24: 24 | AK24: 7274.4 | AL24: KA=1;IK=4622;EKZ=0 | AM24: 24 | AN24: 150000 | AO24: KA=1;IK=2350;EKZ=0 | AP24: 1 | AQ24: 120
C25: 1 | D25: 0 - ohne | E25: 0 | F25: 0 - ohne | G25: 0 | H25: 0 - ohne | I25: 0 | J25: 0 - ohne | K25: 0 | L25: 60 - Ersatz-Teile (Wartung, Rep.) | M25: 60 | N25: IST | O25: EXT | P25: 2018 | Q25: 1 | R25: 0 | T25: KA=1;IK=2700;EKZ=0 | U25: 1 | V25: -6302.52 | W25: KA=1;IK=4300;EKZ=0 | X25: 24 | Y25: 508000 | Z25: KA=1;IK=4300;EKZ=0 | AA25: 24 | AB25: 92880 | AC25: KA=1;IK=4300;EKZ=0 | AD25: 24 | AE25: 380000 | AF25: KA=1;IK=4350;EKZ=0 | AG25: 25 | AH25: 8740 | AI25: KA=1;IK=4240;EKZ=0 | AJ25: 24 | AK25: 237794.48 | AL25: KA=1;IK=5501;EKZ=0 | AM25: 24 | AN25: 6000 | AO25: KA=1;IK=2700;EKZ=0 | AP25: 1 | AQ25: -6302.52
C26: 1 | D26: 0 - ohne | E26: 0 | F26: 0 - ohne | G26: 0 | H26: 0 - ohne | I26: 0 | J26: 0 - ohne | K26: 0 | L26: 61 - B-Ware (Wartung, Rep.) | M26: 61 | N26: IST | O26: EXT | P26: 2018 | Q26: 1 | R26: 0 | T26: KA=1;IK=2750;EKZ=0 | U26: 1 | V26: -900 | W26: KA=1;IK=4350;EKZ=0 | X26: 25 | Y26: 14195 | Z26: KA=1;IK=4350;EKZ=0 | AA26: 25 | AB26: 1598 | AC26: KA=1;IK=4350;EKZ=0 | AD26: 25 | AE26: 8925 | AF26: KA=1;IK=4400;EKZ=0 | AG26: 25 | AH26: 227100.08 | AI26: KA=1;IK=4245;EKZ=0 | AJ26: 25 | AK26: 34160.08 | AL26: KA=1;IK=8520;EKZ=0 | AM26: 25 | AN26: -39291.63 | AO26: KA=1;IK=2750;EKZ=0 | AP26: 1 | AQ26: -900
C27: 1 | D27: 0 - ohne | E27: 0 | F27: 0 - ohne | G27: 0 | H27: 0 - ohne | I27: 0 | J27: 0 - ohne | K27: 0 | L27: 62 - Verschleißteile | M27: 62 | N27: IST | O27: EXT | P27: 2018 | Q27: 1 | R27: 0 | T27: KA=1;IK=4100;EKZ=0 | U27: 24 | V27: 574426 | W27: KA=1;IK=4400;EKZ=0 | X27: 25 | Y27: 404110.08 | Z27: KA=1;IK=4400;EKZ=0 | AA27: 25 | AB27: 44524.92 | AC27: KA=1;IK=4400;EKZ=0 | AD27: 25 | AE27: 232365 | AF27: KA=1;IK=4410;EKZ=0 | AG27: 25 | AH27: 20031.78 | AI27: KA=1;IK=4350;EKZ=0 | AJ27: 25 | AK27: 8744 | AL27: KA=1;IK=8900;EKZ=0 | AM27: 24 | AN27: -71998 | AO27: KA=1;IK=4720;EKZ=0 | AP27: 1 | AQ27: 285.6
C28: 1 | D28: 0 - ohne | E28: 0 | F28: 0 - ohne | G28: 0 | H28: 0 - ohne | I28: 0 | J28: 0 - ohne | K28: 0 | L28: 63 - Zubehör | M28: 63 | N28: IST | O28: EXT | P28: 2018 | Q28: 1 | R28: 0 | T28: KA=1;IK=4110;EKZ=0 | U28: 74 | V28: 116947.18 | W28: KA=1;IK=4410;EKZ=0 | X28: 25 | Y28: 35055.6 | Z28: KA=1;IK=4410;EKZ=0 | AA28: 25 | AB28: 4006.45 | AC28: KA=1;IK=4410;EKZ=0 | AD28: 25 | AE28: 21033.42 | AF28: KA=1;IK=4420;EKZ=0 | AG28: 24 | AH28: 15400.08 | AI28: KA=1;IK=4400;EKZ=0 | AJ28: 25 | AK28: 233566.92 | AO28: KA=1;IK=4725;EKZ=0 | AP28: 1 | AQ28: 40.92
C29: 1 | D29: 0 - ohne | E29: 0 | F29: 0 - ohne | G29: 0 | H29: 0 - ohne | I29: 0 | J29: 0 - ohne | K29: 0 | L29: 64 - Reifen und Räder | M29: 64 | N29: IST | O29: EXT | P29: 2018 | Q29: 1 | R29: 0 | T29: KA=1;IK=4200;EKZ=0 | U29: 515 | V29: 2860473.46 | W29: KA=1;IK=4420;EKZ=0 | X29: 24 | Y29: 26950.08 | Z29: KA=1;IK=4420;EKZ=0 | AA29: 24 | AB29: 3079.92 | AC29: KA=1;IK=4420;EKZ=0 | AD29: 24 | AE29: 16170 | AF29: KA=1;IK=4430;EKZ=0 | AG29: 24 | AH29: 3200 | AI29: KA=1;IK=4410;EKZ=0 | AJ29: 25 | AK29: 20031.92
C30: 1 | D30: 0 - ohne | E30: 0 | F30: 0 - ohne | G30: 0 | H30: 0 - ohne | I30: 0 | J30: 0 - ohne | K30: 0 | L30: 65 - Schmierstoffe/ Öle | M30: 65 | N30: IST | O30: EXT | P30: 2018 | Q30: 1 | R30: 0 | T30: KA=1;IK=4235;EKZ=0 | U30: 120 | V30: 36372 | W30: KA=1;IK=4430;EKZ=0 | X30: 24 | Y30: 15000 | Z30: KA=1;IK=4430;EKZ=0 | AA30: 24 | AB30: 2500 | AC30: KA=1;IK=4430;EKZ=0 | AD30: 24 | AE30: 40000 | AF30: KA=1;IK=4500;EKZ=0 | AG30: 24 | AH30: 408 | AI30: KA=1;IK=4420;EKZ=0 | AJ30: 24 | AK30: 15399.92
C31: 1 | D31: 0 - ohne | E31: 0 | F31: 0 - ohne | G31: 0 | H31: 0 - ohne | I31: 0 | J31: 0 - ohne | K31: 0 | L31: 66 - Merchandising | M31: 66 | N31: IST | O31: EXT | P31: 2018 | Q31: 1 | R31: 0 | T31: KA=1;IK=4240;EKZ=0 | U31: 120 | V31: 597630 | W31: KA=1;IK=4500;EKZ=0 | X31: 24 | Y31: 1000 | Z31: KA=1;IK=4500;EKZ=0 | AA31: 24 | AB31: 55300 | AC31: KA=1;IK=4503;EKZ=0 | AD31: 24 | AE31: 2310 | AF31: KA=1;IK=4503;EKZ=0 | AG31: 24 | AH31: 2200.08 | AI31: KA=1;IK=4430;EKZ=0 | AJ31: 24 | AK31: 29696
C32: 1 | D32: 0 - ohne | E32: 0 | F32: 0 - ohne | G32: 0 | H32: 0 - ohne | I32: 0 | J32: 0 - ohne | K32: 0 | L32: 67 - Austauschteile | M32: 67 | N32: IST | O32: EXT | P32: 2018 | Q32: 1 | R32: 0 | T32: KA=1;IK=4245;EKZ=0 | U32: 125 | V32: 88720 | W32: KA=1;IK=4503;EKZ=0 | X32: 24 | Y32: 3850.08 | Z32: KA=1;IK=4501;EKZ=0 | AA32: 25 | AB32: 14856 | AC32: KA=1;IK=4530;EKZ=0 | AD32: 24 | AE32: 3000 | AF32: KA=1;IK=4540;EKZ=0 | AG32: 48 | AH32: 1553.92 | AI32: KA=1;IK=4500;EKZ=0 | AJ32: 24 | AK32: 450
C33: 1 | D33: 0 - ohne | E33: 0 | F33: 0 - ohne | G33: 0 | H33: 0 - ohne | I33: 0 | J33: 0 - ohne | K33: 0 | L33: 69 - Sonstige Waren | M33: 69 | N33: IST | O33: EXT | P33: 2018 | Q33: 1 | R33: 0 | T33: KA=1;IK=4300;EKZ=0 | U33: 72 | V33: 980880 | W33: KA=1;IK=4530;EKZ=0 | X33: 24 | Y33: 188528 | Z33: KA=1;IK=4503;EKZ=0 | AA33: 24 | AB33: 29439.92 | AC33: KA=1;IK=4540;EKZ=0 | AD33: 24 | AE33: 840 | AF33: KA=1;IK=4570;EKZ=0 | AG33: 24 | AH33: 2800.08 | AI33: KA=1;IK=4501;EKZ=0 | AJ33: 24 | AK33: 2000
C34: 1 | D34: 0 - ohne | E34: 0 | F34: 0 - ohne | G34: 0 | H34: 0 - ohne | I34: 0 | J34: 0 - ohne | K34: 0 | L34: 70 - Mechanik | M34: 70 | N34: IST | O34: EXT | P34: 2018 | Q34: 1 | R34: 0 | T34: KA=1;IK=4350;EKZ=0 | U34: 125 | V34: 42202 | W34: KA=1;IK=4540;EKZ=0 | X34: 48 | Y34: 4199.92 | Z34: KA=1;IK=4540;EKZ=0 | AA34: 24 | AB34: 160.08 | AC34: KA=1;IK=4560;EKZ=0 | AD34: 24 | AE34: 10000 | AF34: KA=1;IK=4580;EKZ=0 | AG34: 24 | AH34: 958 | AI34: KA=1;IK=4503;EKZ=0 | AJ34: 24 | AK34: 3099.92
C35: 1 | D35: 0 - ohne | E35: 0 | F35: 0 - ohne | G35: 0 | H35: 0 - ohne | I35: 0 | J35: 0 - ohne | K35: 0 | L35: 71 - Karosserie | M35: 71 | N35: IST | O35: EXT | P35: 2018 | Q35: 1 | R35: 0 | T35: KA=1;IK=4400;EKZ=0 | U35: 125 | V35: 1141667 | W35: KA=1;IK=4560;EKZ=0 | X35: 25 | Y35: 16400 | Z35: KA=1;IK=4570;EKZ=0 | AA35: 24 | AB35: 559.92 | AC35: KA=1;IK=4570;EKZ=0 | AD35: 24 | AE35: 2940 | AF35: KA=1;IK=4588;EKZ=0 | AG35: 24 | AH35: 722 | AI35: KA=1;IK=4540;EKZ=0 | AJ35: 48 | AK35: 1600.08
C36: 1 | D36: 0 - ohne | E36: 0 | F36: 0 - ohne | G36: 0 | H36: 0 - ohne | I36: 0 | J36: 0 - ohne | K36: 0 | L36: 72 - Lack | M36: 72 | N36: IST | O36: EXT | P36: 2018 | Q36: 1 | R36: 0 | T36: KA=1;IK=4410;EKZ=0 | U36: 125 | V36: 100159.17 | W36: KA=1;IK=4570;EKZ=0 | X36: 24 | Y36: 4900.08 | Z36: KA=1;IK=4589;EKZ=0 | AA36: 24 | AB36: 24 | AC36: KA=1;IK=4580;EKZ=0 | AD36: 24 | AE36: 2 | AF36: KA=1;IK=4589;EKZ=0 | AG36: 24 | AH36: 2520 | AI36: KA=1;IK=4570;EKZ=0 | AJ36: 24 | AK36: 2799.92
C37: 1 | D37: 0 - ohne | E37: 0 | F37: 0 - ohne | G37: 0 | H37: 0 - ohne | I37: 0 | J37: 0 - ohne | K37: 0 | L37: 73 - WKS-Ersatzfahrzeuge | M37: 73 | N37: IST | O37: EXT | P37: 2018 | Q37: 1 | R37: 0 | T37: KA=1;IK=4420;EKZ=0 | U37: 120 | V37: 77000 | W37: KA=1;IK=4588;EKZ=0 | X37: 24 | Y37: 1800 | Z37: KA=1;IK=4590;EKZ=0 | AA37: 24 | AB37: 500 | AC37: KA=1;IK=4589;EKZ=0 | AD37: 24 | AE37: 3126 | AF37: KA=1;IK=4615;EKZ=0 | AG37: 24 | AH37: 2899.92 | AI37: KA=1;IK=4580;EKZ=0 | AJ37: 24 | AK37: 65000
C38: 1 | D38: 0 - ohne | E38: 0 | F38: 0 - ohne | G38: 0 | H38: 0 - ohne | I38: 0 | J38: 0 - ohne | K38: 0 | L38: 74 - Sattlerei | M38: 74 | N38: IST | O38: EXT | P38: 2018 | Q38: 1 | R38: 0 | T38: KA=1;IK=4430;EKZ=0 | U38: 120 | V38: 90396 | W38: KA=1;IK=4589;EKZ=0 | X38: 24 | Y38: 5210 | Z38: KA=1;IK=4615;EKZ=0 | AA38: 24 | AB38: 580.08 | AC38: KA=1;IK=4615;EKZ=0 | AD38: 24 | AE38: 3045.04 | AF38: KA=1;IK=4620;EKZ=0 | AG38: 24 | AH38: 22399.92 | AI38: KA=1;IK=4588;EKZ=0 | AJ38: 25 | AK38: 22377.98
C39: 1 | D39: 0 - ohne | E39: 0 | F39: 0 - ohne | G39: 0 | H39: 0 - ohne | I39: 0 | J39: 0 - ohne | K39: 0 | L39: 75 - Elektronik | M39: 75 | N39: IST | O39: EXT | P39: 2018 | Q39: 1 | R39: 0 | T39: KA=1;IK=4500;EKZ=0 | U39: 120 | V39: 87158 | W39: KA=1;IK=4590;EKZ=0 | X39: 24 | Y39: 161596 | Z39: KA=1;IK=4620;EKZ=0 | AA39: 24 | AB39: 4480.08 | AC39: KA=1;IK=4620;EKZ=0 | AD39: 24 | AE39: 23520 | AF39: KA=1;IK=4622;EKZ=0 | AG39: 24 | AH39: 3154 | AI39: KA=1;IK=4589;EKZ=0 | AJ39: 26 | AK39: 27608.33
C40: 1 | D40: 0 - ohne | E40: 0 | F40: 0 - ohne | G40: 0 | H40: 0 - ohne | I40: 0 | J40: 0 - ohne | K40: 0 | L40: 77 - frei | M40: 77 | N40: IST | O40: EXT | P40: 2018 | Q40: 1 | R40: 0 | T40: KA=1;IK=4501;EKZ=0 | U40: 74 | V40: 22924 | W40: KA=1;IK=4615;EKZ=0 | X40: 24 | Y40: 5075.04 | Z40: KA=1;IK=4622;EKZ=0 | AA40: 24 | AB40: 661134 | AC40: KA=1;IK=4700;EKZ=0 | AD40: 24 | AE40: 4421.04 | AF40: KA=1;IK=4700;EKZ=0 | AG40: 24 | AH40: 6219.92 | AI40: KA=1;IK=4615;EKZ=0 | AJ40: 24 | AK40: 2899.92
C41: 1 | D41: 0 - ohne | E41: 0 | F41: 0 - ohne | G41: 0 | H41: 0 - ohne | I41: 0 | J41: 0 - ohne | K41: 0 | L41: 79 - Rennsport | M41: 79 | N41: IST | O41: EXT | P41: 2018 | Q41: 1 | R41: 0 | T41: KA=1;IK=4503;EKZ=0 | U41: 144 | V41: 49900 | W41: KA=1;IK=4620;EKZ=0 | X41: 24 | Y41: 39199.92 | Z41: KA=1;IK=4700;EKZ=0 | AA41: 24 | AB41: 1004.08 | AC41: KA=1;IK=4710;EKZ=0 | AD41: 24 | AE41: 8820 | AF41: KA=1;IK=4710;EKZ=0 | AG41: 25 | AH41: 8413.85 | AI41: KA=1;IK=4620;EKZ=0 | AJ41: 24 | AK41: 22400.08
C42: 1 | D42: 0 - ohne | E42: 0 | F42: 0 - ohne | G42: 0 | H42: 0 - ohne | I42: 0 | J42: 0 - ohne | K42: 0 | L42: 86 - frei | M42: 86 | N42: IST | O42: EXT | P42: 2018 | Q42: 1 | R42: 0 | T42: KA=1;IK=4530;EKZ=0 | U42: 48 | V42: 191528 | W42: KA=1;IK=4622;EKZ=0 | X42: 24 | Y42: 4802 | Z42: KA=1;IK=4710;EKZ=0 | AA42: 24 | AB42: 1680 | AC42: KA=1;IK=4715;EKZ=0 | AD42: 25 | AE42: 6341.36 | AF42: KA=1;IK=4715;EKZ=0 | AG42: 25 | AH42: 6039.39 | AI42: KA=1;IK=4622;EKZ=0 | AJ42: 24 | AK42: 14400
C43: 1 | D43: 0 - ohne | E43: 0 | F43: 0 - ohne | G43: 0 | H43: 0 - ohne | I43: 0 | J43: 0 - ohne | K43: 0 | L43: 601 - Porsche 911 | M43: 601 | N43: IST | O43: EXT | P43: 2018 | Q43: 1 | R43: 0 | T43: KA=1;IK=4540;EKZ=0 | U43: 192 | V43: 8354 | W43: KA=1;IK=4700;EKZ=0 | X43: 24 | Y43: 6035.04 | Z43: KA=1;IK=4715;EKZ=0 | AA43: 25 | AB43: 1207.88 | AC43: KA=1;IK=4720;EKZ=0 | AD43: 25 | AE43: 22680.02 | AF43: KA=1;IK=4720;EKZ=0 | AG43: 25 | AH43: 21600.11 | AI43: KA=1;IK=4700;EKZ=0 | AJ43: 24 | AK43: 7019.92
C44: 1 | D44: 0 - ohne | E44: 0 | F44: 0 - ohne | G44: 0 | H44: 0 - ohne | I44: 0 | J44: 0 - ohne | K44: 0 | L44: 602 - Porsche Boxter | M44: 602 | N44: IST | O44: EXT | P44: 2018 | Q44: 1 | R44: 0 | T44: KA=1;IK=4560;EKZ=0 | U44: 49 | V44: 26400 | W44: KA=1;IK=4710;EKZ=0 | X44: 24 | Y44: 14700 | Z44: KA=1;IK=4720;EKZ=0 | AA44: 25 | AB44: 4319.93 | AC44: KA=1;IK=4725;EKZ=0 | AD44: 122 | AE44: 22663.37 | AF44: KA=1;IK=4725;EKZ=0 | AG44: 122 | AH44: 21584.16 | AI44: KA=1;IK=4710;EKZ=0 | AJ44: 24 | AK44: 8400
C45: 1 | D45: 0 - ohne | E45: 0 | F45: 0 - ohne | G45: 0 | H45: 0 - ohne | I45: 0 | J45: 0 - ohne | K45: 0 | L45: 603 - Porsche Cayman | M45: 603 | N45: IST | O45: EXT | P45: 2018 | Q45: 1 | R45: 0 | T45: KA=1;IK=4570;EKZ=0 | U45: 120 | V45: 14000 | W45: KA=1;IK=4715;EKZ=0 | X45: 25 | Y45: 10568.92 | Z45: KA=1;IK=4725;EKZ=0 | AA45: 122 | AB45: 4316.84 | AC45: KA=1;IK=4730;EKZ=0 | AD45: 24 | AE45: 4200 | AF45: KA=1;IK=4730;EKZ=0 | AG45: 24 | AH45: 4000.08 | AI45: KA=1;IK=4715;EKZ=0 | AJ45: 25 | AK45: 6039.39
C46: 1 | D46: 0 - ohne | E46: 0 | F46: 0 - ohne | G46: 0 | H46: 0 - ohne | I46: 0 | J46: 0 - ohne | K46: 0 | L46: 604 - Porsche Cayenne | M46: 604 | N46: IST | O46: EXT | P46: 2018 | Q46: 1 | R46: 0 | T46: KA=1;IK=4580;EKZ=0 | U46: 72 | V46: 65960 | W46: KA=1;IK=4720;EKZ=0 | X46: 25 | Y46: 37800.13 | Z46: KA=1;IK=4730;EKZ=0 | AA46: 24 | AB46: 799.92 | AC46: KA=1;IK=4735;EKZ=0 | AD46: 25 | AE46: 12455 | AF46: KA=1;IK=4735;EKZ=0 | AG46: 25 | AH46: 12224.92 | AI46: KA=1;IK=4720;EKZ=0 | AJ46: 25 | AK46: 21599.95
C47: 1 | D47: 0 - ohne | E47: 0 | F47: 0 - ohne | G47: 0 | H47: 0 - ohne | I47: 0 | J47: 0 - ohne | K47: 0 | L47: 605 - Porsche Panamera | M47: 605 | N47: IST | O47: EXT | P47: 2018 | Q47: 1 | R47: 0 | T47: KA=1;IK=4588;EKZ=0 | U47: 73 | V47: 24899.98 | W47: KA=1;IK=4725;EKZ=0 | X47: 122 | Y47: 37772.29 | Z47: KA=1;IK=4735;EKZ=0 | AA47: 25 | AB47: 2420.08 | AC47: KA=1;IK=4760;EKZ=0 | AD47: 25 | AE47: 21138.24 | AF47: KA=1;IK=4740;EKZ=0 | AG47: 24 | AH47: 1148 | AI47: KA=1;IK=4725;EKZ=0 | AJ47: 122 | AK47: 21584.18
C48: 1 | D48: 0 - ohne | E48: 0 | F48: 0 - ohne | G48: 0 | H48: 0 - ohne | I48: 0 | J48: 0 - ohne | K48: 0 | L48: 606 - Porsche Macan | M48: 606 | N48: IST | O48: EXT | P48: 2018 | Q48: 1 | R48: 0 | T48: KA=1;IK=4589;EKZ=0 | U48: 122 | V48: 38488.33 | W48: KA=1;IK=4730;EKZ=0 | X48: 24 | Y48: 7000.08 | Z48: KA=1;IK=4760;EKZ=0 | AA48: 25 | AB48: 4026.41 | AC48: KA=1;IK=4775;EKZ=0 | AD48: 24 | AE48: 7296.16 | AF48: KA=1;IK=4760;EKZ=0 | AG48: 25 | AH48: 21118.57 | AI48: KA=1;IK=4730;EKZ=0 | AJ48: 24 | AK48: 3999.92
C49: 1 | D49: 0 - ohne | E49: 0 | F49: 0 - ohne | G49: 0 | H49: 0 - ohne | I49: 0 | J49: 0 - ohne | K49: 0 | L49: 607 - Modell 7 | M49: 607 | N49: IST | O49: EXT | P49: 2018 | Q49: 1 | R49: 0 | T49: KA=1;IK=4590;EKZ=0 | U49: 48 | V49: 162096 | W49: KA=1;IK=4735;EKZ=0 | X49: 25 | Y49: 21174.92 | Z49: KA=1;IK=4775;EKZ=0 | AA49: 24 | AB49: 816.4 | AC49: KA=1;IK=4780;EKZ=0 | AD49: 25 | AE49: 36894.86 | AF49: KA=1;IK=4775;EKZ=0 | AG49: 24 | AH49: 3604 | AI49: KA=1;IK=4735;EKZ=0 | AJ49: 25 | AK49: 12225.08
C50: 1 | D50: 0 - ohne | E50: 0 | F50: 0 - ohne | G50: 0 | H50: 0 - ohne | I50: 0 | J50: 0 - ohne | K50: 0 | L50: 608 - Modell 8 | M50: 608 | N50: IST | O50: EXT | P50: 2018 | Q50: 1 | R50: 0 | T50: KA=1;IK=4615;EKZ=0 | U50: 120 | V50: 14500 | W50: KA=1;IK=4760;EKZ=0 | X50: 25 | Y50: 35230.31 | Z50: KA=1;IK=4780;EKZ=0 | AA50: 25 | AB50: 7027.51 | AC50: KA=1;IK=4790;EKZ=0 | AD50: 25 | AE50: 4257.96 | AF50: KA=1;IK=4780;EKZ=0 | AG50: 25 | AH50: 35291.34 | AI50: KA=1;IK=4740;EKZ=0 | AJ50: 24 | AK50: 1040
C51: 1 | D51: 0 - ohne | E51: 0 | F51: 0 - ohne | G51: 0 | H51: 0 - ohne | I51: 0 | J51: 0 - ohne | K51: 0 | L51: 609 - Porsche Sondermodelle | M51: 609 | N51: IST | O51: EXT | P51: 2018 | Q51: 1 | R51: 0 | T51: KA=1;IK=4620;EKZ=0 | U51: 120 | V51: 112000 | W51: KA=1;IK=4775;EKZ=0 | X51: 24 | Y51: 16445.44 | Z51: KA=1;IK=4790;EKZ=0 | AA51: 25 | AB51: 836.57 | AC51: KA=1;IK=4795;EKZ=0 | AD51: 24 | AE51: 6300 | AF51: KA=1;IK=4790;EKZ=0 | AG51: 25 | AH51: 4055.28 | AI51: KA=1;IK=4760;EKZ=0 | AJ51: 25 | AK51: 20131.74
C52: 1 | D52: 0 - ohne | E52: 0 | F52: 0 - ohne | G52: 0 | H52: 0 - ohne | I52: 0 | J52: 00 - ohne | K52: 00 | L52: 0 - ohne | M52: 0 | N52: IST | O52: EXT | P52: 2018 | Q52: 1 | R52: 0 | T52: KA=1;IK=4622;EKZ=0 | U52: 120 | V52: 833490 | W52: KA=1;IK=4780;EKZ=0 | X52: 25 | Y52: 61491.52 | Z52: KA=1;IK=4795;EKZ=0 | AA52: 24 | AB52: 1200 | AC52: KA=1;IK=4800;EKZ=0 | AD52: 49 | AE52: 203154.7 | AF52: KA=1;IK=4795;EKZ=0 | AG52: 24 | AH52: 6000 | AI52: KA=1;IK=4775;EKZ=0 | AJ52: 24 | AK52: 53320
C53: 1 | D53: 0 - ohne | E53: 0 | F53: 0 - ohne | G53: 0 | H53: 0 - ohne | I53: 0 | J53: 10 - Privater Endkunde | K53: 10 | L53: 0 - ohne | M53: 0 | N53: IST | O53: EXT | P53: 2018 | Q53: 1 | R53: 0 | T53: KA=1;IK=4700;EKZ=0 | U53: 120 | V53: 24700 | W53: KA=1;IK=4790;EKZ=0 | X53: 25 | Y53: 7096.68 | Z53: KA=1;IK=4800;EKZ=0 | AA53: 49 | AB53: 39393.8 | AC53: KA=1;IK=4810;EKZ=0 | AD53: 25 | AE53: 2807.13 | AF53: KA=1;IK=4800;EKZ=0 | AG53: 49 | AH53: 155014 | AI53: KA=1;IK=4780;EKZ=0 | AJ53: 25 | AK53: 36364.48
C54: 1 | D54: 0 - ohne | E54: 0 | F54: 0 - ohne | G54: 0 | H54: 0 - ohne | I54: 0 | J54: 11 - Privater Endkunde - Bargeschäft | K54: 11 | L54: 0 - ohne | M54: 0 | N54: IST | O54: EXT | P54: 2018 | Q54: 1 | R54: 0 | T54: KA=1;IK=4710;EKZ=0 | U54: 121 | V54: 42013.85 | W54: KA=1;IK=4795;EKZ=0 | X54: 24 | Y54: 10500 | Z54: KA=1;IK=4811;EKZ=0 | AA54: 24 | AB54: 2000 | AC54: KA=1;IK=4811;EKZ=0 | AD54: 24 | AE54: 9000 | AF54: KA=1;IK=4810;EKZ=0 | AG54: 48 | AH54: 2400 | AI54: KA=1;IK=4790;EKZ=0 | AJ54: 25 | AK54: 4055.12
C55: 1 | D55: 0 - ohne | E55: 0 | F55: 0 - ohne | G55: 0 | H55: 0 - ohne | I55: 0 | J55: 12 - Privater Endkunde - Leasing | K55: 12 | L55: 0 - ohne | M55: 0 | N55: IST | O55: EXT | P55: 2018 | Q55: 1 | R55: 0 | T55: KA=1;IK=4715;EKZ=0 | U55: 125 | V55: 30196.94 | W55: KA=1;IK=4800;EKZ=0 | X55: 49 | Y55: 297943.5 | Z55: KA=1;IK=4830;EKZ=0 | AA55: 48 | AB55: 4712 | AC55: KA=1;IK=4830;EKZ=0 | AD55: 48 | AE55: 12462.88 | AF55: KA=1;IK=4811;EKZ=0 | AG55: 24 | AH55: 7000 | AI55: KA=1;IK=4795;EKZ=0 | AJ55: 24 | AK55: 6000
C56: 1 | D56: 0 - ohne | E56: 0 | F56: 0 - ohne | G56: 0 | H56: 0 - ohne | I56: 0 | J56: 13 - Privater Endkunde - Finanzierung | K56: 13 | L56: 0 - ohne | M56: 0 | N56: IST | O56: EXT | P56: 2018 | Q56: 1 | R56: 0 | T56: KA=1;IK=4720;EKZ=0 | U56: 126 | V56: 108285.74 | W56: KA=1;IK=4810;EKZ=0 | X56: 49 | Y56: 9016.82 | Z56: KA=1;IK=4840;EKZ=0 | AA56: 24 | AB56: 160.08 | AC56: KA=1;IK=4840;EKZ=0 | AD56: 24 | AE56: 4040 | AF56: KA=1;IK=4830;EKZ=0 | AG56: 48 | AH56: 15898 | AI56: KA=1;IK=4800;EKZ=0 | AJ56: 49 | AK56: 148738
C57: 1 | D57: 0 - ohne | E57: 0 | F57: 0 - ohne | G57: 0 | H57: 0 - ohne | I57: 0 | J57: 17 - frei | K57: 17 | L57: 0 - ohne | M57: 0 | N57: IST | O57: EXT | P57: 2018 | Q57: 1 | R57: 0 | T57: KA=1;IK=4725;EKZ=0 | U57: 611 | V57: 107961.76 | W57: KA=1;IK=4811;EKZ=0 | X57: 24 | Y57: 14000 | Z57: KA=1;IK=4845;EKZ=0 | AA57: 25 | AB57: 164.9 | AC57: KA=1;IK=4845;EKZ=0 | AD57: 25 | AE57: 865.29 | AF57: KA=1;IK=4840;EKZ=0 | AG57: 24 | AH57: 799.92 | AI57: KA=1;IK=4810;EKZ=0 | AJ57: 48 | AK57: 3130
C58: 1 | D58: 0 - ohne | E58: 0 | F58: 0 - ohne | G58: 0 | H58: 0 - ohne | I58: 0 | J58: 20 - Gewerbekunde (Kleingew./Freiber.) | K58: 20 | L58: 0 - ohne | M58: 0 | N58: IST | O58: EXT | P58: 2018 | Q58: 1 | R58: 0 | T58: KA=1;IK=4730;EKZ=0 | U58: 120 | V58: 20000 | W58: KA=1;IK=4830;EKZ=0 | X58: 48 | Y58: 31805.12 | Z58: KA=1;IK=4900;EKZ=0 | AA58: 25 | AB58: 7500 | AC58: KA=1;IK=4900;EKZ=0 | AD58: 25 | AE58: 39375 | AF58: KA=1;IK=4845;EKZ=0 | AG58: 25 | AH58: 3804.01 | AI58: KA=1;IK=4811;EKZ=0 | AJ58: 24 | AK58: 9170
C59: 1 | D59: 0 - ohne | E59: 0 | F59: 0 - ohne | G59: 0 | H59: 0 - ohne | I59: 0 | J59: 21 - Gewerbekunde (Kleingew./Freiber.) - Bargeschäft | K59: 21 | L59: 0 - ohne | M59: 0 | N59: IST | O59: EXT | P59: 2018 | Q59: 1 | R59: 0 | T59: KA=1;IK=4735;EKZ=0 | U59: 125 | V59: 60500 | W59: KA=1;IK=4840;EKZ=0 | X59: 24 | Y59: 11399.92 | Z59: KA=1;IK=5003;EKZ=0 | AA59: 24 | AB59: 2959.92 | AC59: KA=1;IK=5002;EKZ=0 | AD59: 24 | AE59: 30000 | AF59: KA=1;IK=4900;EKZ=0 | AG59: 25 | AH59: 37500 | AI59: KA=1;IK=4830;EKZ=0 | AJ59: 48 | AK59: 18818
C60: 1 | D60: 0 - ohne | E60: 0 | F60: 0 - ohne | G60: 0 | H60: 0 - ohne | I60: 0 | J60: 22 - Gewerbekunde (Kleingew./Freiber.) - Leasing | K60: 22 | L60: 0 - ohne | M60: 0 | N60: IST | O60: EXT | P60: 2018 | Q60: 1 | R60: 0 | T60: KA=1;IK=4740;EKZ=0 | U60: 48 | V60: 2188 | W60: KA=1;IK=4845;EKZ=0 | X60: 25 | Y60: 1442.07 | Z60: KA=1;IK=5006;EKZ=0 | AA60: 24 | AB60: 799.92 | AC60: KA=1;IK=5003;EKZ=0 | AD60: 25 | AE60: 15727.2 | AF60: KA=1;IK=5002;EKZ=0 | AG60: 24 | AH60: 38 | AI60: KA=1;IK=4840;EKZ=0 | AJ60: 24 | AK60: 31800.08
C61: 1 | D61: 0 - ohne | E61: 0 | F61: 0 - ohne | G61: 0 | H61: 0 - ohne | I61: 0 | J61: 23 - Gewerbekunde (Kleingew./Freiber.) - Finanzierung | K61: 23 | L61: 0 - ohne | M61: 0 | N61: IST | O61: EXT | P61: 2018 | Q61: 1 | R61: 0 | T61: KA=1;IK=4760;EKZ=0 | U61: 125 | V61: 101645.27 | W61: KA=1;IK=4900;EKZ=0 | X61: 25 | Y61: 65625 | Z61: KA=1;IK=5501;EKZ=0 | AA61: 25 | AB61: 103402.59 | AC61: KA=1;IK=5005;EKZ=0 | AD61: 25 | AE61: 373872.77 | AF61: KA=1;IK=5003;EKZ=0 | AG61: 24 | AH61: 14800.08 | AI61: KA=1;IK=4845;EKZ=0 | AJ61: 25 | AK61: 824.16
C62: 1 | D62: 0 - ohne | E62: 0 | F62: 0 - ohne | G62: 0 | H62: 0 - ohne | I62: 0 | J62: 27 - frei | K62: 27 | L62: 0 - ohne | M62: 0 | N62: IST | O62: EXT | P62: 2018 | Q62: 1 | R62: 0 | T62: KA=1;IK=4775;EKZ=0 | U62: 120 | V62: 81482 | W62: KA=1;IK=5002;EKZ=0 | X62: 24 | Y62: 64950 | Z62: KA=1;IK=7010;EKZ=0 | AA62: 24 | AB62: 8971678 | AC62: KA=1;IK=5006;EKZ=0 | AD62: 24 | AE62: 4200 | AF62: KA=1;IK=5006;EKZ=0 | AG62: 24 | AH62: 4000.08 | AI62: KA=1;IK=4900;EKZ=0 | AJ62: 25 | AK62: 37500
C63: 1 | D63: 0 - ohne | E63: 0 | F63: 0 - ohne | G63: 0 | H63: 0 - ohne | I63: 0 | J63: 30 - Großkunden m.Vertrag | K63: 30 | L63: 0 - ohne | M63: 0 | N63: IST | O63: EXT | P63: 2018 | Q63: 1 | R63: 0 | T63: KA=1;IK=4780;EKZ=0 | U63: 125 | V63: 177069.71 | W63: KA=1;IK=5003;EKZ=0 | X63: 24 | Y63: 25900.08 | Z63: KA=1;IK=7200;EKZ=0 | AA63: 24 | AB63: 4320 | AC63: KA=1;IK=7030;EKZ=0 | AD63: 25 | AE63: 10926.2 | AF63: KA=1;IK=5011;EKZ=0 | AG63: 24 | AH63: 10240 | AI63: KA=1;IK=5002;EKZ=0 | AJ63: 24 | AK63: 300
C64: 1 | D64: 0 - ohne | E64: 0 | F64: 0 - ohne | G64: 0 | H64: 0 - ohne | I64: 0 | J64: 31 - Großkunden m.Vertrag - Bargeschäft | K64: 31 | L64: 0 - ohne | M64: 0 | N64: IST | O64: EXT | P64: 2018 | Q64: 1 | R64: 0 | T64: KA=1;IK=4790;EKZ=0 | U64: 125 | V64: 20301.61 | W64: KA=1;IK=5004;EKZ=0 | X64: 32 | Y64: 19492.31 | Z64: KA=1;IK=7802;EKZ=0 | AA64: 24 | AB64: -394740 | AC64: KA=1;IK=7100;EKZ=0 | AD64: 30 | AE64: 24332301.24 | AF64: KA=1;IK=5501;EKZ=0 | AG64: 24 | AH64: 4000 | AI64: KA=1;IK=5003;EKZ=0 | AJ64: 25 | AK64: 15387.04
C65: 1 | D65: 0 - ohne | E65: 0 | F65: 0 - ohne | G65: 0 | H65: 0 - ohne | I65: 0 | J65: 32 - Großkunden m.Vertrag - Leasing | K65: 32 | L65: 0 - ohne | M65: 0 | N65: IST | O65: EXT | P65: 2018 | Q65: 1 | R65: 0 | T65: KA=1;IK=4795;EKZ=0 | U65: 120 | V65: 30000 | W65: KA=1;IK=5006;EKZ=0 | X65: 24 | Y65: 7000.08 | Z65: KA=1;IK=8010;EKZ=0 | AA65: 24 | AB65: -9288000 | AC65: KA=1;IK=7110;EKZ=0 | AD65: 27 | AE65: 7750820.74 | AF65: KA=1;IK=5701;EKZ=0 | AG65: 28 | AH65: -501201.93 | AI65: KA=1;IK=5006;EKZ=0 | AJ65: 24 | AK65: 3999.92
C66: 1 | D66: 0 - ohne | E66: 0 | F66: 0 - ohne | G66: 0 | H66: 0 - ohne | I66: 0 | J66: 33 - Großkunden m.Vertrag - Finanzierung | K66: 33 | L66: 0 - ohne | M66: 0 | N66: IST | O66: EXT | P66: 2018 | Q66: 1 | R66: 0 | T66: KA=1;IK=4800;EKZ=0 | U66: 245 | V66: 844244 | W66: KA=1;IK=5011;EKZ=0 | X66: 24 | Y66: 4004 | Z66: KA=1;IK=8200;EKZ=0 | AA66: 24 | AB66: -9076 | AC66: KA=1;IK=7200;EKZ=0 | AD66: 25 | AE66: 47041.6 | AF66: KA=1;IK=5702;EKZ=0 | AG66: 24 | AH66: -86574 | AI66: KA=1;IK=5011;EKZ=0 | AJ66: 24 | AK66: 6200
C67: 1 | D67: 0 - ohne | E67: 0 | F67: 0 - ohne | G67: 0 | H67: 0 - ohne | I67: 0 | J67: 37 - frei | K67: 37 | L67: 0 - ohne | M67: 0 | N67: IST | O67: EXT | P67: 2018 | Q67: 1 | R67: 0 | T67: KA=1;IK=4810;EKZ=0 | U67: 170 | V67: 17353.95 | W67: KA=1;IK=7000;EKZ=0 | X67: 30 | Y67: 48913109.48 | Z67: KA=1;IK=8520;EKZ=0 | AA67: 1 | AB67: -1500 | AC67: KA=1;IK=7210;EKZ=0 | AD67: 25 | AE67: 291967.3 | AF67: KA=1;IK=5801;EKZ=0 | AG67: 52 | AH67: 127668.67 | AI67: KA=1;IK=5501;EKZ=0 | AJ67: 24 | AK67: 4316
C68: 1 | D68: 0 - ohne | E68: 0 | F68: 0 - ohne | G68: 0 | H68: 0 - ohne | I68: 0 | J68: 40 - Sonderabnehmer | K68: 40 | L68: 0 - ohne | M68: 0 | N68: IST | O68: EXT | P68: 2018 | Q68: 1 | R68: 0 | T68: KA=1;IK=4811;EKZ=0 | U68: 120 | V68: 41170 | W68: KA=1;IK=7030;EKZ=0 | X68: 31 | Y68: 228266.85 | Z68: KA=1;IK=8870;EKZ=0 | AA68: 24 | AB68: -14000 | AC68: KA=1;IK=7220;EKZ=0 | AD68: 3 | AE68: 3306.65 | AF68: KA=1;IK=7300;EKZ=0 | AG68: 45 | AH68: 2735025.59 | AI68: KA=1;IK=5701;EKZ=0 | AJ68: 26 | AK68: -443104.93
C69: 1 | D69: 0 - ohne | E69: 0 | F69: 0 - ohne | G69: 0 | H69: 0 - ohne | I69: 0 | J69: 41 - Sonderabnehmer - Bargeschäft | K69: 41 | L69: 0 - ohne | M69: 0 | N69: IST | O69: EXT | P69: 2018 | Q69: 1 | R69: 0 | T69: KA=1;IK=4830;EKZ=0 | U69: 240 | V69: 83696 | W69: KA=1;IK=7200;EKZ=0 | X69: 27 | Y69: 40395.28 | Z69: KA=1;IK=8890;EKZ=0 | AA69: 12 | AB69: -3500 | AC69: KA=1;IK=8030;EKZ=0 | AD69: 25 | AE69: -15540.2 | AF69: KA=1;IK=7310;EKZ=0 | AG69: 40 | AH69: 2514952.38 | AI69: KA=1;IK=7210;EKZ=0 | AJ69: 26 | AK69: 1052308.64
C70: 1 | D70: 0 - ohne | E70: 0 | F70: 0 - ohne | G70: 0 | H70: 0 - ohne | I70: 0 | J70: 42 - Sonderabnehmer - Leasing | K70: 42 | L70: 0 - ohne | M70: 0 | N70: IST | O70: EXT | P70: 2018 | Q70: 1 | R70: 0 | T70: KA=1;IK=4840;EKZ=0 | U70: 120 | V70: 48200 | W70: KA=1;IK=7210;EKZ=0 | X70: 24 | Y70: 11600 | Z70: KA=1;IK=8900;EKZ=0 | AA70: 1 | AB70: -3.97 | AC70: KA=1;IK=8100;EKZ=0 | AD70: 29 | AE70: -26226876.78 | AF70: KA=1;IK=8300;EKZ=0 | AG70: 45 | AH70: -3678900.25 | AI70: KA=1;IK=7420;EKZ=0 | AJ70: 27 | AK70: 680352.4
C71: 1 | D71: 0 - ohne | E71: 0 | F71: 0 - ohne | G71: 0 | H71: 0 - ohne | I71: 0 | J71: 43 - Sonderabnehmer - Finanzierung | K71: 43 | L71: 0 - ohne | M71: 0 | N71: IST | O71: EXT | P71: 2018 | Q71: 1 | R71: 0 | T71: KA=1;IK=4845;EKZ=0 | U71: 125 | V71: 7100.43 | W71: KA=1;IK=7801;EKZ=0 | X71: 28 | Y71: -2315711.36 | Z71: KA=1;IK=8902;EKZ=0 | AA71: 12 | AB71: -11120 | AC71: KA=1;IK=8110;EKZ=0 | AD71: 27 | AE71: -8184854 | AF71: KA=1;IK=8301;EKZ=0 | AG71: 43 | AH71: 549194.27 | AI71: KA=1;IK=7803;EKZ=0 | AJ71: 24 | AK71: -49000
C72: 1 | D72: 0 - ohne | E72: 0 | F72: 0 - ohne | G72: 0 | H72: 0 - ohne | I72: 0 | J72: 47 - frei | K72: 47 | L72: 0 - ohne | M72: 0 | N72: IST | O72: EXT | P72: 2018 | Q72: 1 | R72: 0 | T72: KA=1;IK=4900;EKZ=0 | U72: 125 | V72: 187500 | W72: KA=1;IK=7802;EKZ=0 | X72: 24 | Y72: -942684 | AC72: KA=1;IK=8111;EKZ=0 | AD72: 26 | AE72: -431272.65 | AF72: KA=1;IK=8310;EKZ=0 | AG72: 38 | AH72: -3725030.94 | AI72: KA=1;IK=7804;EKZ=0 | AJ72: 24 | AK72: -15880
C73: 1 | D73: 0 - ohne | E73: 0 | F73: 0 - ohne | G73: 0 | H73: 0 - ohne | I73: 0 | J73: 50 - Konzern-Organschaft / Gruppe | K73: 50 | L73: 0 - ohne | M73: 0 | N73: IST | O73: EXT | P73: 2018 | Q73: 1 | R73: 0 | T73: KA=1;IK=5002;EKZ=0 | U73: 96 | V73: 95288 | W73: KA=1;IK=7803;EKZ=0 | X73: 24 | Y73: -45000 | AC73: KA=1;IK=8112;EKZ=0 | AD73: 26 | AE73: 42120 | AF73: KA=1;IK=8311;EKZ=0 | AG73: 29 | AH73: 78849.52 | AI73: KA=1;IK=7805;EKZ=0 | AJ73: 24 | AK73: -2000
C74: 1 | D74: 0 - ohne | E74: 0 | F74: 0 - ohne | G74: 0 | H74: 0 - ohne | I74: 0 | J74: 51 - Vermittler | K74: 51 | L74: 0 - ohne | M74: 0 | N74: IST | O74: EXT | P74: 2018 | Q74: 1 | R74: 0 | T74: KA=1;IK=5003;EKZ=0 | U74: 122 | V74: 74774.32 | W74: KA=1;IK=8000;EKZ=0 | X74: 30 | Y74: -54489045.36 | AC74: KA=1;IK=8200;EKZ=0 | AD74: 25 | AE74: -50756.14 | AF74: KA=1;IK=8890;EKZ=0 | AG74: 12 | AH74: -24670 | AI74: KA=1;IK=8210;EKZ=0 | AJ74: 26 | AK74: -1052428.64
C75: 1 | D75: 0 - ohne | E75: 0 | F75: 0 - ohne | G75: 0 | H75: 0 - ohne | I75: 0 | J75: 52 - Händlerkollege | K75: 52 | L75: 0 - ohne | M75: 0 | N75: IST | O75: EXT | P75: 2018 | Q75: 1 | R75: 0 | T75: KA=1;IK=5004;EKZ=0 | U75: 32 | V75: 19492.31 | W75: KA=1;IK=8001;EKZ=0 | X75: 30 | Y75: 3750632.81 | AC75: KA=1;IK=8210;EKZ=0 | AD75: 25 | AE75: -291967.3 | AF75: KA=1;IK=8900;EKZ=0 | AG75: 1 | AH75: -326.1 | AI75: KA=1;IK=8410;EKZ=0 | AJ75: 29 | AK75: -2673523.41
C76: 1 | D76: 0 - ohne | E76: 0 | F76: 0 - ohne | G76: 0 | H76: 0 - ohne | I76: 0 | J76: 53 - Fremdhändler | K76: 53 | L76: 0 - ohne | M76: 0 | N76: IST | O76: EXT | P76: 2018 | Q76: 1 | R76: 0 | T76: KA=1;IK=5005;EKZ=0 | U76: 25 | V76: 373872.77 | W76: KA=1;IK=8030;EKZ=0 | X76: 29 | Y76: -443948.81 | AC76: KA=1;IK=8870;EKZ=0 | AD76: 24 | AE76: -51702 | AF76: KA=1;IK=8902;EKZ=0 | AG76: 12 | AH76: -55600 | AI76: KA=1;IK=8411;EKZ=0 | AJ76: 25 | AK76: 29082.93
C77: 1 | D77: 0 - ohne | E77: 0 | F77: 0 - ohne | G77: 0 | H77: 0 - ohne | I77: 0 | J77: 54 - Fremdwerkstätten | K77: 54 | L77: 0 - ohne | M77: 0 | N77: IST | O77: EXT | P77: 2018 | Q77: 1 | R77: 0 | T77: KA=1;IK=5006;EKZ=0 | U77: 120 | V77: 20000 | W77: KA=1;IK=8200;EKZ=0 | X77: 28 | Y77: -68234.42 | AC77: KA=1;IK=8890;EKZ=0 | AD77: 12 | AE77: -14700 | AI77: KA=1;IK=8420;EKZ=0 | AJ77: 26 | AK77: -629894.52
C78: 1 | D78: 0 - ohne | E78: 0 | F78: 0 - ohne | G78: 0 | H78: 0 - ohne | I78: 0 | J78: 57 - Abnehmer mit Sonderkonditionen | K78: 57 | L78: 0 - ohne | M78: 0 | N78: IST | O78: EXT | P78: 2018 | Q78: 1 | R78: 0 | T78: KA=1;IK=5011;EKZ=0 | U78: 72 | V78: 20444 | W78: KA=1;IK=8210;EKZ=0 | X78: 24 | Y78: -11600 | AC78: KA=1;IK=8900;EKZ=0 | AD78: 1 | AE78: -20.82 | AI78: KA=1;IK=8900;EKZ=0 | AJ78: 26 | AK78: -30939.82
C79: 1 | D79: 0 - ohne | E79: 0 | F79: 0 - ohne | G79: 0 | H79: 0 - ohne | I79: 0 | J79: 60 - angeschlossener Partner | K79: 60 | L79: 0 - ohne | M79: 0 | N79: IST | O79: EXT | P79: 2018 | Q79: 1 | R79: 0 | T79: KA=1;IK=5501;EKZ=0 | U79: 97 | V79: 117718.59 | W79: KA=1;IK=8870;EKZ=0 | X79: 24 | Y79: -215460 | AC79: KA=1;IK=8902;EKZ=0 | AD79: 12 | AE79: -58380 | AI79: KA=1;IK=8902;EKZ=0 | AJ79: 12 | AK79: -55600
C80: 1 | D80: 0 - ohne | E80: 0 | F80: 0 - ohne | G80: 0 | H80: 0 - ohne | I80: 0 | J80: 61 - Agentur | K80: 61 | L80: 0 - ohne | M80: 0 | N80: IST | O80: EXT | P80: 2018 | Q80: 1 | R80: 0 | T80: KA=1;IK=5701;EKZ=0 | U80: 54 | V80: -944306.86 | W80: KA=1;IK=8890;EKZ=0 | X80: 12 | Y80: -95677
C81: 1 | D81: 0 - ohne | E81: 0 | F81: 0 - ohne | G81: 0 | H81: 0 - ohne | I81: 0 | J81: 67 - frei | K81: 67 | L81: 0 - ohne | M81: 0 | N81: IST | O81: EXT | P81: 2018 | Q81: 1 | R81: 0 | T81: KA=1;IK=5702;EKZ=0 | U81: 24 | V81: -86574 | W81: KA=1;IK=8900;EKZ=0 | X81: 1 | Y81: -2328.82
C82: 1 | D82: 0 - ohne | E82: 0 | F82: 0 - ohne | G82: 0 | H82: 0 - ohne | I82: 0 | J82: 90 - Leasingprogramme Hersteller | K82: 90 | L82: 0 - ohne | M82: 0 | N82: IST | O82: EXT | P82: 2018 | Q82: 1 | R82: 0 | T82: KA=1;IK=5801;EKZ=0 | U82: 52 | V82: 127668.67 | W82: KA=1;IK=8902;EKZ=0 | X82: 12 | Y82: -97300
C83: 1 | D83: 0 - ohne | E83: 0 | F83: 0 - ohne | G83: 0 | H83: 0 - ohne | I83: 0 | J83: 91 - Garantie/Gewährleistung | K83: 91 | L83: 0 - ohne | M83: 0 | N83: IST | O83: EXT | P83: 2018 | Q83: 1 | R83: 0 | T83: KA=1;IK=7000;EKZ=0 | U83: 30 | V83: 48913109.48
C84: 1 | D84: 0 - ohne | E84: 0 | F84: 0 - ohne | G84: 0 | H84: 0 - ohne | I84: 0 | J84: 92 - Kulanz | K84: 92 | L84: 0 - ohne | M84: 0 | N84: IST | O84: EXT | P84: 2018 | Q84: 1 | R84: 0 | T84: KA=1;IK=7010;EKZ=0 | U84: 24 | V84: 8971678
C85: 1 | D85: 0 - ohne | E85: 0 | F85: 0 - ohne | G85: 0 | H85: 0 - ohne | I85: 0 | J85: 93 - Vermieter | K85: 93 | L85: 0 - ohne | M85: 0 | N85: IST | O85: EXT | P85: 2018 | Q85: 1 | R85: 0 | T85: KA=1;IK=7030;EKZ=0 | U85: 56 | V85: 239193.05
C86: 1 | D86: 0 - ohne | E86: 0 | F86: 0 - ohne | G86: 0 | H86: 0 - ohne | I86: 0 | J86: 94 - Versicherung | K86: 94 | L86: 0 - ohne | M86: 0 | N86: IST | O86: EXT | P86: 2018 | Q86: 1 | R86: 0 | T86: KA=1;IK=7100;EKZ=0 | U86: 30 | V86: 24332301.24
C87: 1 | D87: 0 - ohne | E87: 0 | F87: 0 - ohne | G87: 0 | H87: 0 - ohne | I87: 0 | J87: 95 - Servicepakete | K87: 95 | L87: 0 - ohne | M87: 0 | N87: IST | O87: EXT | P87: 2018 | Q87: 1 | R87: 0 | T87: KA=1;IK=7110;EKZ=0 | U87: 27 | V87: 7750820.74
C88: 1 | D88: 0 - ohne | E88: 0 | F88: 0 - ohne | G88: 0 | H88: 0 - ohne | I88: 0 | J88: 97 - frei | K88: 97 | L88: 0 - ohne | M88: 0 | N88: IST | O88: EXT | P88: 2018 | Q88: 1 | R88: 0 | T88: KA=1;IK=7200;EKZ=0 | U88: 76 | V88: 91756.88
C89: 1 | D89: 0 - ohne | E89: 0 | F89: 0 - ohne | G89: 0 | H89: 0 - ohne | I89: 0 | J89: 99 - intern (Lohn / Material) | K89: 99 | L89: 0 - ohne | M89: 0 | N89: IST | O89: EXT | P89: 2018 | Q89: 1 | R89: 0 | T89: KA=1;IK=7210;EKZ=0 | U89: 75 | V89: 1355875.94
C90: 1 | D90: 0 - ohne | E90: 0 | F90: 0 - ohne | G90: 0 | H90: 06 - Porsche | I90: 06 | J90: 0 - ohne | K90: 0 | L90: 0 - ohne | M90: 0 | N90: IST | O90: EXT | P90: 2018 | Q90: 1 | R90: 0 | T90: KA=1;IK=7220;EKZ=0 | U90: 3 | V90: 3306.65
C91: 1 | D91: 0 - ohne | E91: 0 | F91: 00 - ohne | G91: 00 | H91: 0 - ohne | I91: 0 | J91: 0 - ohne | K91: 0 | L91: 0 - ohne | M91: 0 | N91: IST | O91: EXT | P91: 2018 | Q91: 1 | R91: 0 | T91: KA=1;IK=7300;EKZ=0 | U91: 45 | V91: 2735025.59
C92: 1 | D92: 0 - ohne | E92: 0 | F92: 810 - Gesamt NW | G92: 810 | H92: 0 - ohne | I92: 0 | J92: 0 - ohne | K92: 0 | L92: 0 - ohne | M92: 0 | N92: IST | O92: EXT | P92: 2018 | Q92: 1 | R92: 0 | T92: KA=1;IK=7310;EKZ=0 | U92: 40 | V92: 2514952.38
C93: 1 | D93: 0 - ohne | E93: 0 | F93: 811 - Neuwagen | G93: 811 | H93: 0 - ohne | I93: 0 | J93: 0 - ohne | K93: 0 | L93: 0 - ohne | M93: 0 | N93: IST | O93: EXT | P93: 2018 | Q93: 1 | R93: 0 | T93: KA=1;IK=7420;EKZ=0 | U93: 27 | V93: 680352.4
C94: 1 | D94: 0 - ohne | E94: 0 | F94: 812 - reserviert (NW) | G94: 812 | H94: 0 - ohne | I94: 0 | J94: 0 - ohne | K94: 0 | L94: 0 - ohne | M94: 0 | N94: IST | O94: EXT | P94: 2018 | Q94: 1 | R94: 0 | T94: KA=1;IK=7801;EKZ=0 | U94: 28 | V94: -2315711.36
C95: 1 | D95: 0 - ohne | E95: 0 | F95: 813 - taktische Zulassungen | G95: 813 | H95: 0 - ohne | I95: 0 | J95: 0 - ohne | K95: 0 | L95: 0 - ohne | M95: 0 | N95: IST | O95: EXT | P95: 2018 | Q95: 1 | R95: 0 | T95: KA=1;IK=7802;EKZ=0 | U95: 48 | V95: -1337424
C96: 1 | D96: 0 - ohne | E96: 0 | F96: 814 - Vorführwagen | G96: 814 | H96: 0 - ohne | I96: 0 | J96: 0 - ohne | K96: 0 | L96: 0 - ohne | M96: 0 | N96: IST | O96: EXT | P96: 2018 | Q96: 1 | R96: 0 | T96: KA=1;IK=7803;EKZ=0 | U96: 48 | V96: -94000
C97: 1 | D97: 0 - ohne | E97: 0 | F97: 815 - reserviert (VfW) | G97: 815 | H97: 0 - ohne | I97: 0 | J97: 0 - ohne | K97: 0 | L97: 0 - ohne | M97: 0 | N97: IST | O97: EXT | P97: 2018 | Q97: 1 | R97: 0 | T97: KA=1;IK=7804;EKZ=0 | U97: 24 | V97: -15880
C98: 1 | D98: 0 - ohne | E98: 0 | F98: 818 - Sale and Lease Back Fzg (SL) | G98: 818 | H98: 0 - ohne | I98: 0 | J98: 0 - ohne | K98: 0 | L98: 0 - ohne | M98: 0 | N98: IST | O98: EXT | P98: 2018 | Q98: 1 | R98: 0 | T98: KA=1;IK=7805;EKZ=0 | U98: 24 | V98: -2000
C99: 1 | D99: 0 - ohne | E99: 0 | F99: 819 - frei | G99: 819 | H99: 0 - ohne | I99: 0 | J99: 0 - ohne | K99: 0 | L99: 0 - ohne | M99: 0 | N99: IST | O99: EXT | P99: 2018 | Q99: 1 | R99: 0 | T99: KA=1;IK=8000;EKZ=0 | U99: 30 | V99: -54489045.36
C100: 1 | D100: 0 - ohne | E100: 0 | F100: 820 - Gesamt GW | G100: 820 | H100: 0 - ohne | I100: 0 | J100: 0 - ohne | K100: 0 | L100: 0 - ohne | M100: 0 | N100: IST | O100: EXT | P100: 2018 | Q100: 1 | R100: 0 | T100: KA=1;IK=8001;EKZ=0 | U100: 30 | V100: 3750632.81
C101: 1 | D101: 0 - ohne | E101: 0 | F101: 821 - Inzahlungsnahmen | G101: 821 | H101: 0 - ohne | I101: 0 | J101: 0 - ohne | K101: 0 | L101: 0 - ohne | M101: 0 | N101: IST | O101: EXT | P101: 2018 | Q101: 1 | R101: 0 | T101: KA=1;IK=8010;EKZ=0 | U101: 24 | V101: -9288000
C102: 1 | D102: 0 - ohne | E102: 0 | F102: 822 - freie Zukäufe | G102: 822 | H102: 0 - ohne | I102: 0 | J102: 0 - ohne | K102: 0 | L102: 0 - ohne | M102: 0 | N102: IST | O102: EXT | P102: 2018 | Q102: 1 | R102: 0 | T102: KA=1;IK=8030;EKZ=0 | U102: 54 | V102: -459489.01
C103: 1 | D103: 0 - ohne | E103: 0 | F103: 823 - Zukäufe Werkswagen | G103: 823 | H103: 0 - ohne | I103: 0 | J103: 0 - ohne | K103: 0 | L103: 0 - ohne | M103: 0 | N103: IST | O103: EXT | P103: 2018 | Q103: 1 | R103: 0 | T103: KA=1;IK=8100;EKZ=0 | U103: 29 | V103: -26226876.78
C104: 1 | D104: 0 - ohne | E104: 0 | F104: 824 - Leasingrückläufer | G104: 824 | H104: 0 - ohne | I104: 0 | J104: 0 - ohne | K104: 0 | L104: 0 - ohne | M104: 0 | N104: IST | O104: EXT | P104: 2018 | Q104: 1 | R104: 0 | T104: KA=1;IK=8110;EKZ=0 | U104: 27 | V104: -8184854
C105: 1 | D105: 0 - ohne | E105: 0 | F105: 825 - Mietwagenrückläufer | G105: 825 | H105: 0 - ohne | I105: 0 | J105: 0 - ohne | K105: 0 | L105: 0 - ohne | M105: 0 | N105: IST | O105: EXT | P105: 2018 | Q105: 1 | R105: 0 | T105: KA=1;IK=8111;EKZ=0 | U105: 26 | V105: -431272.65
C106: 1 | D106: 0 - ohne | E106: 0 | F106: 826 - Kundenersatzfahrzeuge | G106: 826 | H106: 0 - ohne | I106: 0 | J106: 0 - ohne | K106: 0 | L106: 0 - ohne | M106: 0 | N106: IST | O106: EXT | P106: 2018 | Q106: 1 | R106: 0 | T106: KA=1;IK=8112;EKZ=0 | U106: 26 | V106: 42120
C107: 1 | D107: 0 - ohne | E107: 0 | F107: 829 - Service Loaner | G107: 829 | H107: 0 - ohne | I107: 0 | J107: 0 - ohne | K107: 0 | L107: 0 - ohne | M107: 0 | N107: IST | O107: EXT | P107: 2018 | Q107: 1 | R107: 0 | T107: KA=1;IK=8200;EKZ=0 | U107: 77 | V107: -128066.56
C108: 1 | D108: 0 - ohne | E108: 0 | F108: 830 - Gesamt TD | G108: 830 | H108: 0 - ohne | I108: 0 | J108: 0 - ohne | K108: 0 | L108: 0 - ohne | M108: 0 | N108: IST | O108: EXT | P108: 2018 | Q108: 1 | R108: 0 | T108: KA=1;IK=8210;EKZ=0 | U108: 75 | V108: -1355995.94
C109: 1 | D109: 0 - ohne | E109: 0 | F109: 831 - Originalteile | G109: 831 | H109: 0 - ohne | I109: 0 | J109: 0 - ohne | K109: 0 | L109: 0 - ohne | M109: 0 | N109: IST | O109: EXT | P109: 2018 | Q109: 1 | R109: 0 | T109: KA=1;IK=8300;EKZ=0 | U109: 45 | V109: -3678900.25
C110: 1 | D110: 0 - ohne | E110: 0 | F110: 832 - Fremdteile | G110: 832 | H110: 0 - ohne | I110: 0 | J110: 0 - ohne | K110: 0 | L110: 0 - ohne | M110: 0 | N110: IST | O110: EXT | P110: 2018 | Q110: 1 | R110: 0 | T110: KA=1;IK=8301;EKZ=0 | U110: 43 | V110: 549194.27
C111: 1 | D111: 0 - ohne | E111: 0 | F111: 833 - Rennsport | G111: 833 | H111: 0 - ohne | I111: 0 | J111: 0 - ohne | K111: 0 | L111: 0 - ohne | M111: 0 | N111: IST | O111: EXT | P111: 2018 | Q111: 1 | R111: 0 | T111: KA=1;IK=8310;EKZ=0 | U111: 38 | V111: -3725030.94
C112: 1 | D112: 0 - ohne | E112: 0 | F112: 839 - frei | G112: 839 | H112: 0 - ohne | I112: 0 | J112: 0 - ohne | K112: 0 | L112: 0 - ohne | M112: 0 | N112: IST | O112: EXT | P112: 2018 | Q112: 1 | R112: 0 | T112: KA=1;IK=8311;EKZ=0 | U112: 29 | V112: 78849.52
C113: 1 | D113: 0 - ohne | E113: 0 | F113: 840 - Gesamt KD | G113: 840 | H113: 0 - ohne | I113: 0 | J113: 0 - ohne | K113: 0 | L113: 0 - ohne | M113: 0 | N113: IST | O113: EXT | P113: 2018 | Q113: 1 | R113: 0 | T113: KA=1;IK=8410;EKZ=0 | U113: 29 | V113: -2673523.41
C114: 1 | D114: 0 - ohne | E114: 0 | F114: 841 - Eigene Werkstatt | G114: 841 | H114: 0 - ohne | I114: 0 | J114: 0 - ohne | K114: 0 | L114: 0 - ohne | M114: 0 | N114: IST | O114: EXT | P114: 2018 | Q114: 1 | R114: 0 | T114: KA=1;IK=8411;EKZ=0 | U114: 25 | V114: 29082.93
C115: 1 | D115: 0 - ohne | E115: 0 | F115: 842 - Fremdleistungen | G115: 842 | H115: 0 - ohne | I115: 0 | J115: 0 - ohne | K115: 0 | L115: 0 - ohne | M115: 0 | N115: IST | O115: EXT | P115: 2018 | Q115: 1 | R115: 0 | T115: KA=1;IK=8420;EKZ=0 | U115: 26 | V115: -629894.52
C116: 1 | D116: 0 - ohne | E116: 0 | F116: 849 - frei | G116: 849 | H116: 0 - ohne | I116: 0 | J116: 0 - ohne | K116: 0 | L116: 0 - ohne | M116: 0 | N116: IST | O116: EXT | P116: 2018 | Q116: 1 | R116: 0 | T116: KA=1;IK=8520;EKZ=0 | U116: 26 | V116: -40791.63
C117: 1 | D117: 0 - ohne | E117: 0 | F117: 850 - Gesamt WB | G117: 850 | H117: 0 - ohne | I117: 0 | J117: 0 - ohne | K117: 0 | L117: 0 - ohne | M117: 0 | N117: IST | O117: EXT | P117: 2018 | Q117: 1 | R117: 0 | T117: KA=1;IK=8870;EKZ=0 | U117: 72 | V117: -281162
C118: 1 | D118: 0 - ohne | E118: 0 | F118: 851 - Mietwagen | G118: 851 | H118: 0 - ohne | I118: 0 | J118: 0 - ohne | K118: 0 | L118: 0 - ohne | M118: 0 | N118: IST | O118: EXT | P118: 2018 | Q118: 1 | R118: 0 | T118: KA=1;IK=8890;EKZ=0 | U118: 48 | V118: -138547
C119: 1 | D119: 0 - ohne | E119: 0 | F119: 852 - Reifeneinlagerung | G119: 852 | H119: 0 - ohne | I119: 0 | J119: 0 - ohne | K119: 0 | L119: 0 - ohne | M119: 0 | N119: IST | O119: EXT | P119: 2018 | Q119: 1 | R119: 0 | T119: KA=1;IK=8900;EKZ=0 | U119: 54 | V119: -105617.53
C120: 1 | D120: 0 - ohne | E120: 0 | F120: 853 - Abschleppdienst | G120: 853 | H120: 0 - ohne | I120: 0 | J120: 0 - ohne | K120: 0 | L120: 0 - ohne | M120: 0 | N120: IST | O120: EXT | P120: 2018 | Q120: 1 | R120: 0 | T120: KA=1;IK=8902;EKZ=0 | U120: 60 | V120: -278000
C121: 1 | D121: 0 - ohne | E121: 0 | F121: 854 - Cafeteria | G121: 854 | H121: 0 - ohne | I121: 0 | J121: 0 - ohne | K121: 0 | L121: 0 - ohne | M121: 0 | N121: IST | O121: EXT | P121: 2018 | Q121: 1 | R121: 0
C122: 1 | D122: 0 - ohne | E122: 0 | F122: 855 - Waschanlage | G122: 855 | H122: 0 - ohne | I122: 0 | J122: 0 - ohne | K122: 0 | L122: 0 - ohne | M122: 0 | N122: IST | O122: EXT | P122: 2018 | Q122: 1 | R122: 0
C123: 1 | D123: 0 - ohne | E123: 0 | F123: 861 - Tankstelle | G123: 861 | H123: 0 - ohne | I123: 0 | J123: 0 - ohne | K123: 0 | L123: 0 - ohne | M123: 0 | N123: IST | O123: EXT | P123: 2018 | Q123: 1 | R123: 0
C124: 1 | D124: 0 - ohne | E124: 0 | F124: 862 - Eigene Leasinggesellschaft | G124: 862 | H124: 0 - ohne | I124: 0 | J124: 0 - ohne | K124: 0 | L124: 0 - ohne | M124: 0 | N124: IST | O124: EXT | P124: 2018 | Q124: 1 | R124: 0
C125: 1 | D125: 0 - ohne | E125: 0 | F125: 871 - Rennsport | G125: 871 | H125: 0 - ohne | I125: 0 | J125: 0 - ohne | K125: 0 | L125: 0 - ohne | M125: 0 | N125: IST | O125: EXT | P125: 2018 | Q125: 1 | R125: 0
C126: 1 | D126: 0 - ohne | E126: 0 | F126: 881 - frei | G126: 881 | H126: 0 - ohne | I126: 0 | J126: 0 - ohne | K126: 0 | L126: 0 - ohne | M126: 0 | N126: IST | O126: EXT | P126: 2018 | Q126: 1 | R126: 0
C127: 1 | D127: 0 - ohne | E127: 0 | F127: 891 - Verkauf gesamt | G127: 891 | H127: 0 - ohne | I127: 0 | J127: 0 - ohne | K127: 0 | L127: 0 - ohne | M127: 0 | N127: IST | O127: EXT | P127: 2018 | Q127: 1 | R127: 0
C128: 1 | D128: 0 - ohne | E128: 0 | F128: 892 - After Sales gesamt | G128: 892 | H128: 0 - ohne | I128: 0 | J128: 0 - ohne | K128: 0 | L128: 0 - ohne | M128: 0 | N128: IST | O128: EXT | P128: 2018 | Q128: 1 | R128: 0
C129: 1 | D129: 0 - ohne | E129: 0 | F129: 893 - Weitere Bereiche gesamt | G129: 893 | H129: 0 - ohne | I129: 0 | J129: 0 - ohne | K129: 0 | L129: 0 - ohne | M129: 0 | N129: IST | O129: EXT | P129: 2018 | Q129: 1 | R129: 0
C130: 1 | D130: 0 - ohne | E130: 0 | F130: 9990 - Behelfskostenstelle | G130: 9990 | H130: 0 - ohne | I130: 0 | J130: 0 - ohne | K130: 0 | L130: 0 - ohne | M130: 0 | N130: IST | O130: EXT | P130: 2018 | Q130: 1 | R130: 0
C131: 1 | D131: 1 - Frankfurt | E131: 1 | F131: 0 - ohne | G131: 0 | H131: 0 - ohne | I131: 0 | J131: 0 - ohne | K131: 0 | L131: 0 - ohne | M131: 0 | N131: IST | O131: EXT | P131: 2018 | Q131: 1 | R131: 0
B132: KA=1;IK=2110;EKZ=0 | C132: 1 | D132: 1 - Frankfurt | E132: 1 | F132: 00 - ohne | G132: 00 | H132: 06 - Porsche | I132: 06 | J132: 00 - ohne | K132: 00 | L132: 00 - ohne | M132: 00 | N132: P01 | O132: EXT | P132: 2018 | Q132: 1 | R132: 8750
B133: KA=1;IK=2110;EKZ=0 | C133: 1 | D133: 1 - Frankfurt | E133: 1 | F133: 00 - ohne | G133: 00 | H133: 06 - Porsche | I133: 06 | J133: 00 - ohne | K133: 00 | L133: 00 - ohne | M133: 00 | N133: P01 | O133: EXT | P133: 2018 | Q133: 1 | R133: 833.33
B134: KA=1;IK=2110;EKZ=0 | C134: 1 | D134: 1 - Frankfurt | E134: 1 | F134: 00 - ohne | G134: 00 | H134: 06 - Porsche | I134: 06 | J134: 00 - ohne | K134: 00 | L134: 00 - ohne | M134: 00 | N134: P01 | O134: EXT | P134: 2018 | Q134: 2 | R134: 8750
B135: KA=1;IK=2110;EKZ=0 | C135: 1 | D135: 1 - Frankfurt | E135: 1 | F135: 00 - ohne | G135: 00 | H135: 06 - Porsche | I135: 06 | J135: 00 - ohne | K135: 00 | L135: 00 - ohne | M135: 00 | N135: P01 | O135: EXT | P135: 2018 | Q135: 2 | R135: 833.34
B136: KA=1;IK=2110;EKZ=0 | C136: 1 | D136: 1 - Frankfurt | E136: 1 | F136: 00 - ohne | G136: 00 | H136: 06 - Porsche | I136: 06 | J136: 00 - ohne | K136: 00 | L136: 00 - ohne | M136: 00 | N136: P01 | O136: EXT | P136: 2018 | Q136: 3 | R136: 8750
B137: KA=1;IK=2110;EKZ=0 | C137: 1 | D137: 1 - Frankfurt | E137: 1 | F137: 00 - ohne | G137: 00 | H137: 06 - Porsche | I137: 06 | J137: 00 - ohne | K137: 00 | L137: 00 - ohne | M137: 00 | N137: P01 | O137: EXT | P137: 2018 | Q137: 3 | R137: 833.33
B138: KA=1;IK=2110;EKZ=0 | C138: 1 | D138: 1 - Frankfurt | E138: 1 | F138: 00 - ohne | G138: 00 | H138: 06 - Porsche | I138: 06 | J138: 00 - ohne | K138: 00 | L138: 00 - ohne | M138: 00 | N138: P01 | O138: EXT | P138: 2018 | Q138: 4 | R138: 833.33
B139: KA=1;IK=2110;EKZ=0 | C139: 1 | D139: 1 - Frankfurt | E139: 1 | F139: 00 - ohne | G139: 00 | H139: 06 - Porsche | I139: 06 | J139: 00 - ohne | K139: 00 | L139: 00 - ohne | M139: 00 | N139: P01 | O139: EXT | P139: 2018 | Q139: 4 | R139: 8750
B140: KA=1;IK=2110;EKZ=0 | C140: 1 | D140: 1 - Frankfurt | E140: 1 | F140: 00 - ohne | G140: 00 | H140: 06 - Porsche | I140: 06 | J140: 00 - ohne | K140: 00 | L140: 00 - ohne | M140: 00 | N140: P01 | O140: EXT | P140: 2018 | Q140: 5 | R140: 833.34
B141: KA=1;IK=2110;EKZ=0 | C141: 1 | D141: 1 - Frankfurt | E141: 1 | F141: 00 - ohne | G141: 00 | H141: 06 - Porsche | I141: 06 | J141: 00 - ohne | K141: 00 | L141: 00 - ohne | M141: 00 | N141: P01 | O141: EXT | P141: 2018 | Q141: 5 | R141: 8750
B142: KA=1;IK=2110;EKZ=0 | C142: 1 | D142: 1 - Frankfurt | E142: 1 | F142: 00 - ohne | G142: 00 | H142: 06 - Porsche | I142: 06 | J142: 00 - ohne | K142: 00 | L142: 00 - ohne | M142: 00 | N142: P01 | O142: EXT | P142: 2018 | Q142: 6 | R142: 833.33
B143: KA=1;IK=2110;EKZ=0 | C143: 1 | D143: 1 - Frankfurt | E143: 1 | F143: 00 - ohne | G143: 00 | H143: 06 - Porsche | I143: 06 | J143: 00 - ohne | K143: 00 | L143: 00 - ohne | M143: 00 | N143: P01 | O143: EXT | P143: 2018 | Q143: 6 | R143: 8750
B144: KA=1;IK=2110;EKZ=0 | C144: 1 | D144: 1 - Frankfurt | E144: 1 | F144: 00 - ohne | G144: 00 | H144: 06 - Porsche | I144: 06 | J144: 00 - ohne | K144: 00 | L144: 00 - ohne | M144: 00 | N144: P01 | O144: EXT | P144: 2018 | Q144: 7 | R144: 833.33
B145: KA=1;IK=2110;EKZ=0 | C145: 1 | D145: 1 - Frankfurt | E145: 1 | F145: 00 - ohne | G145: 00 | H145: 06 - Porsche | I145: 06 | J145: 00 - ohne | K145: 00 | L145: 00 - ohne | M145: 00 | N145: P01 | O145: EXT | P145: 2018 | Q145: 7 | R145: 8750
B146: KA=1;IK=2110;EKZ=0 | C146: 1 | D146: 1 - Frankfurt | E146: 1 | F146: 00 - ohne | G146: 00 | H146: 06 - Porsche | I146: 06 | J146: 00 - ohne | K146: 00 | L146: 00 - ohne | M146: 00 | N146: P01 | O146: EXT | P146: 2018 | Q146: 8 | R146: 8750
B147: KA=1;IK=2110;EKZ=0 | C147: 1 | D147: 1 - Frankfurt | E147: 1 | F147: 00 - ohne | G147: 00 | H147: 06 - Porsche | I147: 06 | J147: 00 - ohne | K147: 00 | L147: 00 - ohne | M147: 00 | N147: P01 | O147: EXT | P147: 2018 | Q147: 8 | R147: 833.34
B148: KA=1;IK=2110;EKZ=0 | C148: 1 | D148: 1 - Frankfurt | E148: 1 | F148: 00 - ohne | G148: 00 | H148: 06 - Porsche | I148: 06 | J148: 00 - ohne | K148: 00 | L148: 00 - ohne | M148: 00 | N148: P01 | O148: EXT | P148: 2018 | Q148: 9 | R148: 833.33
B149: KA=1;IK=2110;EKZ=0 | C149: 1 | D149: 1 - Frankfurt | E149: 1 | F149: 00 - ohne | G149: 00 | H149: 06 - Porsche | I149: 06 | J149: 00 - ohne | K149: 00 | L149: 00 - ohne | M149: 00 | N149: P01 | O149: EXT | P149: 2018 | Q149: 9 | R149: 8750
B150: KA=1;IK=2110;EKZ=0 | C150: 1 | D150: 1 - Frankfurt | E150: 1 | F150: 00 - ohne | G150: 00 | H150: 06 - Porsche | I150: 06 | J150: 00 - ohne | K150: 00 | L150: 00 - ohne | M150: 00 | N150: P01 | O150: EXT | P150: 2018 | Q150: 10 | R150: 8750
B151: KA=1;IK=2110;EKZ=0 | C151: 1 | D151: 1 - Frankfurt | E151: 1 | F151: 00 - ohne | G151: 00 | H151: 06 - Porsche | I151: 06 | J151: 00 - ohne | K151: 00 | L151: 00 - ohne | M151: 00 | N151: P01 | O151: EXT | P151: 2018 | Q151: 10 | R151: 833.33
B152: KA=1;IK=2110;EKZ=0 | C152: 1 | D152: 1 - Frankfurt | E152: 1 | F152: 00 - ohne | G152: 00 | H152: 06 - Porsche | I152: 06 | J152: 00 - ohne | K152: 00 | L152: 00 - ohne | M152: 00 | N152: P01 | O152: EXT | P152: 2018 | Q152: 11 | R152: 833.34
B153: KA=1;IK=2110;EKZ=0 | C153: 1 | D153: 1 - Frankfurt | E153: 1 | F153: 00 - ohne | G153: 00 | H153: 06 - Porsche | I153: 06 | J153: 00 - ohne | K153: 00 | L153: 00 - ohne | M153: 00 | N153: P01 | O153: EXT | P153: 2018 | Q153: 11 | R153: 8750
B154: KA=1;IK=2110;EKZ=0 | C154: 1 | D154: 1 - Frankfurt | E154: 1 | F154: 00 - ohne | G154: 00 | H154: 06 - Porsche | I154: 06 | J154: 00 - ohne | K154: 00 | L154: 00 - ohne | M154: 00 | N154: P01 | O154: EXT | P154: 2018 | Q154: 12 | R154: 833.33
B155: KA=1;IK=2110;EKZ=0 | C155: 1 | D155: 1 - Frankfurt | E155: 1 | F155: 00 - ohne | G155: 00 | H155: 06 - Porsche | I155: 06 | J155: 00 - ohne | K155: 00 | L155: 00 - ohne | M155: 00 | N155: P01 | O155: EXT | P155: 2018 | Q155: 12 | R155: 8750
B156: KA=1;IK=2120;EKZ=0 | C156: 1 | D156: 1 - Frankfurt | E156: 1 | F156: 00 - ohne | G156: 00 | H156: 06 - Porsche | I156: 06 | J156: 00 - ohne | K156: 00 | L156: 00 - ohne | M156: 00 | N156: P01 | O156: EXT | P156: 2018 | Q156: 1 | R156: 208.33
B157: KA=1;IK=2120;EKZ=0 | C157: 1 | D157: 1 - Frankfurt | E157: 1 | F157: 00 - ohne | G157: 00 | H157: 06 - Porsche | I157: 06 | J157: 00 - ohne | K157: 00 | L157: 00 - ohne | M157: 00 | N157: P01 | O157: EXT | P157: 2018 | Q157: 2 | R157: 208.34
B158: KA=1;IK=2120;EKZ=0 | C158: 1 | D158: 1 - Frankfurt | E158: 1 | F158: 00 - ohne | G158: 00 | H158: 06 - Porsche | I158: 06 | J158: 00 - ohne | K158: 00 | L158: 00 - ohne | M158: 00 | N158: P01 | O158: EXT | P158: 2018 | Q158: 3 | R158: 208.33
B159: KA=1;IK=2120;EKZ=0 | C159: 1 | D159: 1 - Frankfurt | E159: 1 | F159: 00 - ohne | G159: 00 | H159: 06 - Porsche | I159: 06 | J159: 00 - ohne | K159: 00 | L159: 00 - ohne | M159: 00 | N159: P01 | O159: EXT | P159: 2018 | Q159: 4 | R159: 208.33
B160: KA=1;IK=2120;EKZ=0 | C160: 1 | D160: 1 - Frankfurt | E160: 1 | F160: 00 - ohne | G160: 00 | H160: 06 - Porsche | I160: 06 | J160: 00 - ohne | K160: 00 | L160: 00 - ohne | M160: 00 | N160: P01 | O160: EXT | P160: 2018 | Q160: 5 | R160: 208.34
B161: KA=1;IK=2120;EKZ=0 | C161: 1 | D161: 1 - Frankfurt | E161: 1 | F161: 00 - ohne | G161: 00 | H161: 06 - Porsche | I161: 06 | J161: 00 - ohne | K161: 00 | L161: 00 - ohne | M161: 00 | N161: P01 | O161: EXT | P161: 2018 | Q161: 6 | R161: 208.33
B162: KA=1;IK=2120;EKZ=0 | C162: 1 | D162: 1 - Frankfurt | E162: 1 | F162: 00 - ohne | G162: 00 | H162: 06 - Porsche | I162: 06 | J162: 00 - ohne | K162: 00 | L162: 00 - ohne | M162: 00 | N162: P01 | O162: EXT | P162: 2018 | Q162: 7 | R162: 208.33
B163: KA=1;IK=2120;EKZ=0 | C163: 1 | D163: 1 - Frankfurt | E163: 1 | F163: 00 - ohne | G163: 00 | H163: 06 - Porsche | I163: 06 | J163: 00 - ohne | K163: 00 | L163: 00 - ohne | M163: 00 | N163: P01 | O163: EXT | P163: 2018 | Q163: 8 | R163: 208.34
B164: KA=1;IK=2120;EKZ=0 | C164: 1 | D164: 1 - Frankfurt | E164: 1 | F164: 00 - ohne | G164: 00 | H164: 06 - Porsche | I164: 06 | J164: 00 - ohne | K164: 00 | L164: 00 - ohne | M164: 00 | N164: P01 | O164: EXT | P164: 2018 | Q164: 9 | R164: 208.33
B165: KA=1;IK=2120;EKZ=0 | C165: 1 | D165: 1 - Frankfurt | E165: 1 | F165: 00 - ohne | G165: 00 | H165: 06 - Porsche | I165: 06 | J165: 00 - ohne | K165: 00 | L165: 00 - ohne | M165: 00 | N165: P01 | O165: EXT | P165: 2018 | Q165: 10 | R165: 208.33
B166: KA=1;IK=2120;EKZ=0 | C166: 1 | D166: 1 - Frankfurt | E166: 1 | F166: 00 - ohne | G166: 00 | H166: 06 - Porsche | I166: 06 | J166: 00 - ohne | K166: 00 | L166: 00 - ohne | M166: 00 | N166: P01 | O166: EXT | P166: 2018 | Q166: 11 | R166: 208.34
B167: KA=1;IK=2120;EKZ=0 | C167: 1 | D167: 1 - Frankfurt | E167: 1 | F167: 00 - ohne | G167: 00 | H167: 06 - Porsche | I167: 06 | J167: 00 - ohne | K167: 00 | L167: 00 - ohne | M167: 00 | N167: P01 | O167: EXT | P167: 2018 | Q167: 12 | R167: 208.33
B168: KA=1;IK=2300;EKZ=0 | C168: 1 | D168: 1 - Frankfurt | E168: 1 | F168: 00 - ohne | G168: 00 | H168: 06 - Porsche | I168: 06 | J168: 00 - ohne | K168: 00 | L168: 00 - ohne | M168: 00 | N168: IST | O168: EXT | P168: 2018 | Q168: 1 | R168: 0.27
B169: KA=1;IK=2350;EKZ=0 | C169: 1 | D169: 1 - Frankfurt | E169: 1 | F169: 00 - ohne | G169: 00 | H169: 06 - Porsche | I169: 06 | J169: 00 - ohne | K169: 00 | L169: 00 - ohne | M169: 00 | N169: IST | O169: EXT | P169: 2018 | Q169: 1 | R169: 120
B170: KA=1;IK=2700;EKZ=0 | C170: 1 | D170: 1 - Frankfurt | E170: 1 | F170: 00 - ohne | G170: 00 | H170: 06 - Porsche | I170: 06 | J170: 00 - ohne | K170: 00 | L170: 00 - ohne | M170: 00 | N170: IST | O170: EXT | P170: 2018 | Q170: 1 | R170: -6302.52
B171: KA=1;IK=2750;EKZ=0 | C171: 1 | D171: 1 - Frankfurt | E171: 1 | F171: 00 - ohne | G171: 00 | H171: 06 - Porsche | I171: 06 | J171: 00 - ohne | K171: 00 | L171: 00 - ohne | M171: 00 | N171: IST | O171: EXT | P171: 2018 | Q171: 1 | R171: -900
B172: KA=1;IK=4100;EKZ=0 | C172: 1 | D172: 1 - Frankfurt | E172: 1 | F172: 840 - Gesamt KD | G172: 840 | H172: 06 - Porsche | I172: 06 | J172: 00 - ohne | K172: 00 | L172: 00 - ohne | M172: 00 | N172: P01 | O172: EXT | P172: 2018 | Q172: 1 | R172: 13642.62
B173: KA=1;IK=4100;EKZ=0 | C173: 1 | D173: 1 - Frankfurt | E173: 1 | F173: 840 - Gesamt KD | G173: 840 | H173: 06 - Porsche | I173: 06 | J173: 00 - ohne | K173: 00 | L173: 00 - ohne | M173: 00 | N173: P01 | O173: EXT | P173: 2018 | Q173: 2 | R173: 18869.89
B174: KA=1;IK=4100;EKZ=0 | C174: 1 | D174: 1 - Frankfurt | E174: 1 | F174: 840 - Gesamt KD | G174: 840 | H174: 06 - Porsche | I174: 06 | J174: 00 - ohne | K174: 00 | L174: 00 - ohne | M174: 00 | N174: P01 | O174: EXT | P174: 2018 | Q174: 3 | R174: 30157.37
B175: KA=1;IK=4100;EKZ=0 | C175: 1 | D175: 1 - Frankfurt | E175: 1 | F175: 840 - Gesamt KD | G175: 840 | H175: 06 - Porsche | I175: 06 | J175: 00 - ohne | K175: 00 | L175: 00 - ohne | M175: 00 | N175: P01 | O175: EXT | P175: 2018 | Q175: 4 | R175: 25533.23
B176: KA=1;IK=4100;EKZ=0 | C176: 1 | D176: 1 - Frankfurt | E176: 1 | F176: 840 - Gesamt KD | G176: 840 | H176: 06 - Porsche | I176: 06 | J176: 00 - ohne | K176: 00 | L176: 00 - ohne | M176: 00 | N176: P01 | O176: EXT | P176: 2018 | Q176: 5 | R176: 24499.27
B177: KA=1;IK=4100;EKZ=0 | C177: 1 | D177: 1 - Frankfurt | E177: 1 | F177: 840 - Gesamt KD | G177: 840 | H177: 06 - Porsche | I177: 06 | J177: 00 - ohne | K177: 00 | L177: 00 - ohne | M177: 00 | N177: P01 | O177: EXT | P177: 2018 | Q177: 6 | R177: 30387.14
B178: KA=1;IK=4100;EKZ=0 | C178: 1 | D178: 1 - Frankfurt | E178: 1 | F178: 840 - Gesamt KD | G178: 840 | H178: 06 - Porsche | I178: 06 | J178: 00 - ohne | K178: 00 | L178: 00 - ohne | M178: 00 | N178: P01 | O178: EXT | P178: 2018 | Q178: 7 | R178: 24585.43
B179: KA=1;IK=4100;EKZ=0 | C179: 1 | D179: 1 - Frankfurt | E179: 1 | F179: 840 - Gesamt KD | G179: 840 | H179: 06 - Porsche | I179: 06 | J179: 00 - ohne | K179: 00 | L179: 00 - ohne | M179: 00 | N179: P01 | O179: EXT | P179: 2018 | Q179: 8 | R179: 25935.33
B180: KA=1;IK=4100;EKZ=0 | C180: 1 | D180: 1 - Frankfurt | E180: 1 | F180: 840 - Gesamt KD | G180: 840 | H180: 06 - Porsche | I180: 06 | J180: 00 - ohne | K180: 00 | L180: 00 - ohne | M180: 00 | N180: P01 | O180: EXT | P180: 2018 | Q180: 9 | R180: 22316.45
B181: KA=1;IK=4100;EKZ=0 | C181: 1 | D181: 1 - Frankfurt | E181: 1 | F181: 840 - Gesamt KD | G181: 840 | H181: 06 - Porsche | I181: 06 | J181: 00 - ohne | K181: 00 | L181: 00 - ohne | M181: 00 | N181: P01 | O181: EXT | P181: 2018 | Q181: 10 | R181: 23034.49
B182: KA=1;IK=4100;EKZ=0 | C182: 1 | D182: 1 - Frankfurt | E182: 1 | F182: 840 - Gesamt KD | G182: 840 | H182: 06 - Porsche | I182: 06 | J182: 00 - ohne | K182: 00 | L182: 00 - ohne | M182: 00 | N182: P01 | O182: EXT | P182: 2018 | Q182: 11 | R182: 24413.1
B183: KA=1;IK=4100;EKZ=0 | C183: 1 | D183: 1 - Frankfurt | E183: 1 | F183: 840 - Gesamt KD | G183: 840 | H183: 06 - Porsche | I183: 06 | J183: 00 - ohne | K183: 00 | L183: 00 - ohne | M183: 00 | N183: P01 | O183: EXT | P183: 2018 | Q183: 12 | R183: 23838.68
B184: KA=1;IK=4100;EKZ=0 | C184: 1 | D184: 1 - Frankfurt | E184: 1 | F184: 840 - Gesamt KD | G184: 840 | H184: 06 - Porsche | I184: 06 | J184: 00 - ohne | K184: 00 | L184: 00 - ohne | M184: 00 | N184: P02 | O184: EXT | P184: 2018 | Q184: 1 | R184: 22000.52
B185: KA=1;IK=4100;EKZ=0 | C185: 1 | D185: 1 - Frankfurt | E185: 1 | F185: 840 - Gesamt KD | G185: 840 | H185: 06 - Porsche | I185: 06 | J185: 00 - ohne | K185: 00 | L185: 00 - ohne | M185: 00 | N185: P02 | O185: EXT | P185: 2018 | Q185: 2 | R185: 22402.61
B186: KA=1;IK=4100;EKZ=0 | C186: 1 | D186: 1 - Frankfurt | E186: 1 | F186: 840 - Gesamt KD | G186: 840 | H186: 06 - Porsche | I186: 06 | J186: 00 - ohne | K186: 00 | L186: 00 - ohne | M186: 00 | N186: P02 | O186: EXT | P186: 2018 | Q186: 3 | R186: 25102.42
B187: KA=1;IK=4100;EKZ=0 | C187: 1 | D187: 1 - Frankfurt | E187: 1 | F187: 840 - Gesamt KD | G187: 840 | H187: 06 - Porsche | I187: 06 | J187: 00 - ohne | K187: 00 | L187: 00 - ohne | M187: 00 | N187: P02 | O187: EXT | P187: 2018 | Q187: 4 | R187: 25217.3
B188: KA=1;IK=4100;EKZ=0 | C188: 1 | D188: 1 - Frankfurt | E188: 1 | F188: 840 - Gesamt KD | G188: 840 | H188: 06 - Porsche | I188: 06 | J188: 00 - ohne | K188: 00 | L188: 00 - ohne | M188: 00 | N188: P02 | O188: EXT | P188: 2018 | Q188: 5 | R188: 25447.07
B189: KA=1;IK=4100;EKZ=0 | C189: 1 | D189: 1 - Frankfurt | E189: 1 | F189: 840 - Gesamt KD | G189: 840 | H189: 06 - Porsche | I189: 06 | J189: 00 - ohne | K189: 00 | L189: 00 - ohne | M189: 00 | N189: P02 | O189: EXT | P189: 2018 | Q189: 6 | R189: 25561.96
B190: KA=1;IK=4100;EKZ=0 | C190: 1 | D190: 1 - Frankfurt | E190: 1 | F190: 840 - Gesamt KD | G190: 840 | H190: 06 - Porsche | I190: 06 | J190: 00 - ohne | K190: 00 | L190: 00 - ohne | M190: 00 | N190: P02 | O190: EXT | P190: 2018 | Q190: 7 | R190: 23063.2
B191: KA=1;IK=4100;EKZ=0 | C191: 1 | D191: 1 - Frankfurt | E191: 1 | F191: 840 - Gesamt KD | G191: 840 | H191: 06 - Porsche | I191: 06 | J191: 00 - ohne | K191: 00 | L191: 00 - ohne | M191: 00 | N191: P02 | O191: EXT | P191: 2018 | Q191: 8 | R191: 22287.73
B192: KA=1;IK=4100;EKZ=0 | C192: 1 | D192: 1 - Frankfurt | E192: 1 | F192: 840 - Gesamt KD | G192: 840 | H192: 06 - Porsche | I192: 06 | J192: 00 - ohne | K192: 00 | L192: 00 - ohne | M192: 00 | N192: P02 | O192: EXT | P192: 2018 | Q192: 9 | R192: 25188.58
B193: KA=1;IK=4100;EKZ=0 | C193: 1 | D193: 1 - Frankfurt | E193: 1 | F193: 840 - Gesamt KD | G193: 840 | H193: 06 - Porsche | I193: 06 | J193: 00 - ohne | K193: 00 | L193: 00 - ohne | M193: 00 | N193: P02 | O193: EXT | P193: 2018 | Q193: 10 | R193: 25131.14
B194: KA=1;IK=4100;EKZ=0 | C194: 1 | D194: 1 - Frankfurt | E194: 1 | F194: 840 - Gesamt KD | G194: 840 | H194: 06 - Porsche | I194: 06 | J194: 00 - ohne | K194: 00 | L194: 00 - ohne | M194: 00 | N194: P02 | O194: EXT | P194: 2018 | Q194: 11 | R194: 22747.27
B195: KA=1;IK=4100;EKZ=0 | C195: 1 | D195: 1 - Frankfurt | E195: 1 | F195: 840 - Gesamt KD | G195: 840 | H195: 06 - Porsche | I195: 06 | J195: 00 - ohne | K195: 00 | L195: 00 - ohne | M195: 00 | N195: P02 | O195: EXT | P195: 2018 | Q195: 12 | R195: 23063.2
B196: KA=1;IK=4110;EKZ=0 | C196: 1 | D196: 1 - Frankfurt | E196: 1 | F196: 840 - Gesamt KD | G196: 840 | H196: 06 - Porsche | I196: 06 | J196: 00 - ohne | K196: 00 | L196: 00 - ohne | M196: 00 | N196: P01 | O196: EXT | P196: 2018 | Q196: 1 | R196: 2046.75
B197: KA=1;IK=4110;EKZ=0 | C197: 1 | D197: 1 - Frankfurt | E197: 1 | F197: 840 - Gesamt KD | G197: 840 | H197: 06 - Porsche | I197: 06 | J197: 00 - ohne | K197: 00 | L197: 00 - ohne | M197: 00 | N197: P01 | O197: EXT | P197: 2018 | Q197: 1 | R197: 1092.5
B198: KA=1;IK=4110;EKZ=0 | C198: 1 | D198: 1 - Frankfurt | E198: 1 | F198: 840 - Gesamt KD | G198: 840 | H198: 06 - Porsche | I198: 06 | J198: 00 - ohne | K198: 00 | L198: 00 - ohne | M198: 00 | N198: P01 | O198: EXT | P198: 2018 | Q198: 1 | R198: 833.33
B199: KA=1;IK=4110;EKZ=0 | C199: 1 | D199: 1 - Frankfurt | E199: 1 | F199: 840 - Gesamt KD | G199: 840 | H199: 06 - Porsche | I199: 06 | J199: 00 - ohne | K199: 00 | L199: 00 - ohne | M199: 00 | N199: P01 | O199: EXT | P199: 2018 | Q199: 2 | R199: 1511.1
B200: KA=1;IK=4110;EKZ=0 | C200: 1 | D200: 1 - Frankfurt | E200: 1 | F200: 840 - Gesamt KD | G200: 840 | H200: 06 - Porsche | I200: 06 | J200: 00 - ohne | K200: 00 | L200: 00 - ohne | M200: 00 | N200: P01 | O200: EXT | P200: 2018 | Q200: 2 | R200: 2046.75
... 4300 more rows
